{"text_format":"1","workbook":"xlsx","n_sheets":8,"sheets":["Квитанция","вер. 3.00 от 21.12.2016","Настройки","Шаблон ДШК","Шаблон ПД4","Карточки ДШК","Шаблон ПД жкх","Лист1"],"not_rendered":{"charts":0,"images":0,"macros":1,"external_links":0,"defined_names":22,"comments":1,"pivot_tables":0},"unopened":[],"bounds":{"document_bytes":16777216,"sheet_cells":100000,"rows_first":2000,"rows_last":500,"rows_between":2000,"halvings":0,"cell_chars":16384,"cell_head_chars":4096},"cells_cut":0,"cells_raw":0,"read":"whole","date_system":"1900"}

{"sheet":"Квитанция","index":0,"n_rows":27,"n_cols":3,"rows_kept":27,"cut":false,"hidden":false,"merged":[[26,0,26,2]]}
[null,null,"ПАО СБЕРБАНК                                                                                                                  Форма №ПД-4"]
[null,"Извещение",{"$f":"Name","v":" УФК по Челябинской области (Управление Министерства юстиции Российской Федерации по Челябинской области)"}]
[null,null,"(наименование получателя платежа)"]
[null,null,{"$f":"\"  ИНН \"&INN&\" КПП \"&KPP&\"                         \"&PersonalAcc","v":"  ИНН 7453197647 КПП 745101001                         40101810400000010801"}]
[null,null,"  (инн получателя платежа)                                                    (номер счёта получателя платежа)"]
[null,null,{"$f":"\"БИК \"&BIC&\" (\"&BankName&\")\"","v":"БИК 047501001 (Отделение Челябинск, г. Челябинск)"}]
[null,null,"(наименование банка получателя платежа)"]
[null,null,"Назначение: Госпошлина в ЗАГС за проставление апостиля ; КБК: 31810807200010039110; ОКТМО: 75701000"]
[null,null,"(назначение платежа)"]
[null,null,"Сумма: 2500 руб. 00 коп."]
[null,null,"(сумма платежа)"]
[null,null,"С условиями приёма указанной в платёжном документе суммы, в т.ч. с суммой взимаемой платы за услуги  "]
[null,null,"банка, ознакомлен и согласен.                    Подпись плательщика                                        \\"]
[null,null,"ПАО СБЕРБАНК                                                                                                                       Форма №ПД-4"]
[null,"Квитанция",{"$f":"C2","v":" УФК по Челябинской области (Управление Министерства юстиции Российской Федерации по Челябинской области)"}]
[null,null,"(наименование получателя платежа)"]
[null,null,{"$f":"C4","v":"  ИНН 7453197647 КПП 745101001                         40101810400000010801"}]
[null,null,"  (инн получателя платежа)                                                        (номер счёта получателя платежа)"]
[null,null,{"$f":"C6","v":"БИК 047501001 (Отделение Челябинск, г. Челябинск)"}]
[null,null," (наименование банка получателя платежа)"]
[null,null,"Назначение: Госпошлина в ЗАГС за проставление апостиля ; КБК: 31810807200010039110; ОКТМО: 75701000"]
[null,null,"(назначение платежа)"]
[null,null,"Сумма: 2500 руб. 00 коп."]
[null,null,"(сумма платежа)"]
[null,null,"С условиями приёма указанной в платёжном документе суммы, в т.ч. с суммой взимаемой платы за услуги  "]
[null,null,"банка, ознакомлен и согласен.                    Подпись плательщика                                        \\"]
["-----------------------------------------------------------------------------------------------------------------"]

{"sheet":"вер. 3.00 от 21.12.2016","index":1,"n_rows":10,"n_cols":2,"rows_kept":10,"cut":false,"hidden":true,"merged":[]}
["Инструкция по заполнению файла"]
[1,"Для корректного формирования текстового файла нужно использовать Excel  2007, 2010."]
[2,"Перед формированием файла на вкладке \"Настройка\" необходимо указать шаблон Сбербанка, расчетные реквизиты организации, каталог для выгрузки текстовых файлов, указать номер услуги. Если вы предоставляете реестр только по одной услуге - укажите 001"]
[3,"Во вкадке \"Настройка\" все поля обязательны для заполнения"]
[4,"Значения полей \"Лицевой счет\"/\"Номер договора\" являются ключевыми и они не должны дублироваться для одного реестра."]
[5,"В поле \"Лицевой счет\"/\"Номер договора\" разрешен ввод русских и латинских букв, цифр, символа «-»."]
[6,"В поле \"ФИО\" разрешен ввод русских букв, пробела и символа «-»."]
[7,"В поле \"Адрес\" разрешен ввод русских букв, цифр, запятой, точки, пробела, символов \"-\" и \"/\"."]
[8,"Если данные содержат ошибки, реестр или картчоки ДШК сформировать будет невозможно. "]
[9,"Сформированный файл передается в банк способом, установленным договором."]

{"sheet":"Настройки","index":2,"n_rows":114,"n_cols":28,"rows_kept":114,"cut":false,"hidden":true,"merged":[]}
["Параметр","Значение",null,null,null,null,null,null,null,null,null,null,null,null,null,null,null,null,null,"Шаблоны",null,"Поля шаблона",null,null,null,"Код кодировки",null,"Тип квитанции"]
["Шаблон","Шаблон 3.8(для квитаницй)",null,null,null,null,null,null,null,null,null,null,null,null,null,null,null,null,null,"Шаблон 1.1",null,"ФИО;Назначение;Сумма",null,null,null,1,null,"Карточка"]
["Наименование организации"," УФК по Челябинской области (Управление Министерства юстиции Российской Федерации по Челябинской области)",null,null,null,null,null,null,null,null,null,null,null,null,null,null,null,null,null,"Шаблон 1.2",null,"Номер договора;ФИО;Сумма",null,null,null,2,null,"Полная ПД-4"]
["ИНН","7453197647",null,null,null,null,null,null,null,null,null,null,null,null,null,null,null,null,null,"Шаблон 1.3",null,"Номер договора;ФИО;Адрес;Сумма",null,null,null,3,null,"Укороченная ПД-4"]
["КПП","745101001",null,null,null,null,null,null,null,null,null,null,null,null,null,null,null,null,null,"Шаблон 1.4",null,"Номер договора;ФИО;Адрес;Сумма"]
["БИК","047501001",null,null,null,null,null,null,null,null,null,null,null,null,null,null,null,null,null,"Шаблон 1.7",null,"Номер счета на оплату;ФИО;Назначение (список значений);Назначение платежа;КБК;ОКТМО;Сумма"]
["Корреспондентский счет","00000000000000000000",null,null,null,null,null,null,null,null,null,null,null,null,null,null,null,null,null,"Шаблон 1.8",null,"Номер договора;ФИО;Сумма"]
["Наименование банка","Отделение Челябинск, г. Челябинск",null,null,null,null,null,null,null,null,null,null,null,null,null,null,null,null,null,"Шаблон 1.9",null,"ID агента;Номер договора;Сумма"]
["Расчетный счет","40101810400000010801",null,null,null,null,null,null,null,null,null,null,null,null,null,null,null,null,null,"Шаблон 2.1",null,"ФИО;Адрес;Назначение;Сумма"]
["Код услуги",null,null,null,null,null,null,null,null,null,null,null,null,null,null,null,null,null,null,"Шаблон 3.1",null,"ФИО;ФИО ребенка;Адрес;Номер учреждения;Номер группы;Лицевой счет;Период;КБК;ОКТМО;Назначение;Сумма"]
["Каталог для выгрузки реестра",null,null,null,null,null,null,null,null,null,null,null,null,null,null,null,null,null,null,"Шаблон 3.2",null,"ФИО;Адрес;ФИО ребенка;КБК;ОКТМО;Сумма"]
["Дополнительные параметры ДШК",null,null,null,null,null,null,null,null,null,null,null,null,null,null,null,null,null,null,"Шаблон 3.3",null,"ФИО студента;ФИО;Номер группы;Номер договора;Период;КБК;ОКТМО;Назначение;Сумма"]
["Код кодировки текста: 1 – WIN1251 ; 2 – UTF8 ; 3 – КОI8-R",1,null,null,null,null,null,null,null,null,null,null,null,null,null,null,null,null,null,"Шаблон 3.4",null,"Лицевой счет;ФИО ребенка;Номер группы;Период;Назначение;КБК;ОКТМО;Сумма"]
["Вид квитанции","Полная ПД-4",null,null,null,null,null,null,null,null,null,null,null,null,null,null,null,null,null,"Шаблон 3.5",null,"ФИО;Адрес;ФИО ребенка;Период;КБК;ОКТМО;Сумма"]
[null,null,null,null,null,null,null,null,null,null,null,null,null,null,null,null,null,null,null,"Шаблон 3.6",null,"ФИО ребенка;Период;КБК;ОКТМО;Сумма"]
[null,null,null,null,null,null,null,null,null,null,null,null,null,null,null,null,null,null,null,"Шаблон 3.7",null,"ФИО ребенка;Лицевой счет;Номер группы;Адрес;КБК;ОКТМО;Сумма"]
[null,null,null,null,null,null,null,null,null,null,null,null,null,null,null,null,null,null,null,"Шаблон 3.8(для квитаницй)",null,"ФИО;Адрес;Назначение;КБК;ОКТМО;Сумма"]
[null,null,null,null,null,null,null,null,null,null,null,null,null,null,null,null,null,null,null,"Шаблон 3.8 (для ФБЗ)",null,"Назначение;КБК;ОКТМО"]
[null,null,null,null,null,null,null,null,null,null,null,null,null,null,null,null,null,null,null,"Шаблон 3.9",null,"ФИО;Адрес;Назначение;УИН;КБК;ОКТМО;Сумма"]
[null,null,null,null,null,null,null,null,null,null,null,null,null,null,null,null,null,null,null,"Шаблон 3.9 (без УИН)",null,"ФИО;Адрес;Назначение;КБК;ОКТМО;Сумма"]
[null,null,null,null,null,null,null,null,null,null,null,null,null,null,null,null,null,null,null,"Шаблон 3.10",null,"ФИО;ФИО ребенка;Адрес;Номер группы;Лицевой счет;КБК;ОКТМО;Назначение;Сумма"]
[null,null,null,null,null,null,null,null,null,null,null,null,null,null,null,null,null,null,null,"Шаблон 3.11",null,"ФИО;Адрес;Назначение;КБК;ОКТМО;Вид ДУЛ;Номер ДУЛ;Сумма"]
[null,null,null,null,null,null,null,null,null,null,null,null,null,null,null,null,null,null,null,"Шаблон 3.12",null,"Лицевой счет;ФИО;Адрес;КБК;ОКТМО;Сумма"]
[null,null,null,null,null,null,null,null,null,null,null,null,null,null,null,null,null,null,null,"Шаблон 3.13(для квитанций)",null,"ФИО;ФИО ребенка;Назначение;КБК;ОКТМО;Сумма"]
[null,null,null,null,null,null,null,null,null,null,null,null,null,null,null,null,null,null,null,"Шаблон 3.13(для ФБЗ)",null,"Назначение;КБК;ОКТМО"]
[null,null,null,null,null,null,null,null,null,null,null,null,null,null,null,null,null,null,null,"Шаблон 3.15",null,"ФИО;ФИО студента;Номер группы;Номер курса;Вид дохода;Сумма"]
[null,null,null,null,null,null,null,null,null,null,null,null,null,null,null,null,null,null,null,"Шаблон 3.16",null,"Лицевой счет;ФИО ребенка;Наименование МОУ;Группа/Кружок;КБК;ОКТМО;Сумма"]
[null,null,null,null,null,null,null,null,null,null,null,null,null,null,null,null,null,null,null,"Шаблон 3.25",null,"Номер договора;ФИО обучающегося;Назначение платежа;КБК;ОКТМО;ФИО;Адрес;Сумма"]
[null,null,null,null,null,null,null,null,null,null,null,null,null,null,null,null,null,null,null,"Шаблон 3.25 (без КБК и ОКТМО)",null,"Номер договора;ФИО обучающегося;Назначение платежа;ФИО;Адрес;Сумма"]
[null,null,null,null,null,null,null,null,null,null,null,null,null,null,null,null,null,null,null,"Шаблон 3.26",null,"Номер договора;ФИО ребенка;Дополнительная информация;КБК;ОКТМО;ФИО;Сумма"]
[null,null,null,null,null,null,null,null,null,null,null,null,null,null,null,null,null,null,null,"Шаблон 3.27",null,"СНИЛС;ФИО ребенка;Дополнительная информация;КБК;ОКТМО;ФИО;Сумма"]
[null,null,null,null,null,null,null,null,null,null,null,null,null,null,null,null,null,null,null,"Шаблон 3.32",null,"Лицевой счет;ФИО ребенка;Дополнительная информация;КБК;ОКТМО;ФИО;Сумма"]
[null,null,null,null,null,null,null,null,null,null,null,null,null,null,null,null,null,null,null,"Шаблон 4.1",null,"ФИО;Адрес;КБК;ОКТМО;УИН;СНИЛС;ИНН плательщика;Номер ДУЛ;Назначение;Сумма"]
[null,null,null,null,null,null,null,null,null,null,null,null,null,null,null,null,null,null,null,"Шаблон 5.1",null,"ФИО;Адрес;Сумма"]
[null,null,null,null,null,null,null,null,null,null,null,null,null,null,null,null,null,null,null,"Шаблон 6.1",null,"Лицевой счет;Сумма"]
[null,null,null,null,null,null,null,null,null,null,null,null,null,null,null,null,null,null,null,"Шаблон 6.8",null,"Лицевой счет;ФИО;Адрес;Дополнительная информация;Сумма"]
[null,null,null,null,null,null,null,null,null,null,null,null,null,null,null,null,null,null,null,"Шаблон 6.9",null,"Номер договора;ФИО;Адрес;Дополнительная информация;Сумма"]
[null,null,null,null,null,null,null,null,null,null,null,null,null,null,null,null,null,null,null,"Шаблон 6.10",null,"Номер телефона;ФИО;Адрес;Дополнительная информация;Сумма"]
[null,null,null,null,null,null,null,null,null,null,null,null,null,null,null,null,null,null,null,"Шаблон 6.11",null,"Логин;ФИО;Адрес;Дополнительная информация;Сумма"]
[null,null,null,null,null,null,null,null,null,null,null,null,null,null,null,null,null,null,null,"Шаблон 6.13",null,"Номер заказа (заявки);ФИО;Адрес;Дополнительная информация;Сумма"]
[null,null,null,null,null,null,null,null,null,null,null,null,null,null,null,null,null,null,null,"Шаблон 6.14",null,"Номер бронирования;ФИО;Адрес;Дополнительная информация;Сумма"]
[null,null,null,null,null,null,null,null,null,null,null,null,null,null,null,null,null,null,null,"Шаблон 6.12",null,"Лицевой счет;ФИО;Адрес;Дополнительная информация;Сумма;ИНН получателя;Получатель платежа;БИК;Расчетный счет;Банк получателя;Кор.счет"]
[null,null,null,null,null,null,null,null,null,null,null,null,null,null,null,null,null,null,null,"Шаблон 6.15",null,"Номер счета на оплату;ФИО;Адрес;Дополнительная информация;Сумма;ИНН получателя;Получатель платежа;БИК;Расчетный счет;Банк получателя;Кор.счет"]
[null,null,null,null,null,null,null,null,null,null,null,null,null,null,null,null,null,null,null,"Шаблон 7.1",null,"Лицевой счет;ФИО;Сумма"]
[null,null,null,null,null,null,null,null,null,null,null,null,null,null,null,null,null,null,null,"Шаблон 8.1",null,"Лицевой счет;Адрес;Сумма"]
[null,null,null,null,null,null,null,null,null,null,null,null,null,null,null,null,null,null,null,"Шаблон 8.2",null,"Лицевой счет;Адрес;Сумма;Период"]
[null,null,null,null,null,null,null,null,null,null,null,null,null,null,null,null,null,null,null,"Шаблон 9.1",null,"Лицевой счет;ФИО;Адрес;Период;Наименование услуги1;Код услуги1;Сумма1;Наименование услуги2;Код услуги2;Сумма2;Наименование услуги3;Код услуги3;Сумма3;Наименование услуги4;Код услуги4;Сумма4;Наименование услуги5;Код услуги5;Сумма5;Наименование услуги6;Код услуги6;Сумма6;Наименование услуги7;Код услуги7;Сумма7;Наименование услуги8;Код услуги8;Сумма8;Наименование услуги9;Код услуги9;Сумма9;Наименование услуги10;Код услуги10;Сумма10;Наименование услуги11;Код услуги11;Сумма11;Наименование услуги12;Код услуги12;Сумма12;"]
[null,null,null,null,null,null,null,null,null,null,null,null,null,null,null,null,null,null,null,"Шаблон 9.2",null,"Лицевой счет;ФИО;Адрес;Период;Наименование услуги 1;Код услуги 1;Сумма по услуге 1;Наименование услуги 2;Код услуги 2;Сумма по услуге 2;Наименование услуги 3;Код услуги 3;Сумма по услуге 3;Сумма"]
[null,null,null,null,null,null,null,null,null,null,null,null,null,null,null,null,null,null,null,"Шаблон 10.1",null,"Лицевой счет;ФИО;Адрес;Сумма"]
[null,null,null,null,null,null,null,null,null,null,null,null,null,null,null,null,null,null,null,"Шаблон 10.2",null,"Лицевой счет;ФИО;Адрес;Период;Сумма"]
[null,null,null,null,null,null,null,null,null,null,null,null,null,null,null,null,null,null,null,"Шаблон 10.3",null,"Лицевой счет;ФИО;Адрес;Сумма"]
[null,null,null,null,null,null,null,null,null,null,null,null,null,null,null,null,null,null,null,"Шаблон 10.4",null,"Лицевой счет;ФИО;Адрес;Назначение;Сумма"]
[null,null,null,null,null,null,null,null,null,null,null,null,null,null,null,null,null,null,null,"Шаблон 10.5",null,"Лицевой счет;ФИО;Адрес;Сумма;Назначение"]
[null,null,null,null,null,null,null,null,null,null,null,null,null,null,null,null,null,null,null,"Шаблон 10.7",null,"Номер участка;ФИО;Назначение;Сумма"]
[null,null,null,null,null,null,null,null,null,null,null,null,null,null,null,null,null,null,null,"Шаблон 10.8",null,"Номер машиноместа/бокса;ФИО;Адрес;Период;Сумма"]
[null,null,null,null,null,null,null,null,null,null,null,null,null,null,null,null,null,null,null,"Шаблон 11.1",null,"Лицевой счет;Период;Сумма"]
[null,null,null,null,null,null,null,null,null,null,null,null,null,null,null,null,null,null,null,"Шаблон 13.1",null,"Лицевой счет;Период;Счетчик холодной воды 1;Счетчик холодной воды 2;Счетчик холодной воды 3;Счетчик горячей воды 1;Счетчик горячей воды 2;Счетчик горячей воды 3;Счетчик электроэнергии 1;Счетчик электроэнергии 2;Сумма"]
[null,null,null,null,null,null,null,null,null,null,null,null,null,null,null,null,null,null,null,"Шаблон 13.2",null,"Лицевой счет;ФИО;Адрес;Предыдущие показания ХВС (счетчик №1);Текущие показания ХВС (счетчик №1);Предыдущие показания ХВС (счетчик №2);Текущие показания ХВС (счетчик №2);Предыдущие показания ХВС (счетчик №3);Текущие показания ХВС (счетчик №3);Предыдущие показания ХВС (счетчик №4);Текущие показания ХВС (счетчик №4);Сумма"]
[null,null,null,null,null,null,null,null,null,null,null,null,null,null,null,null,null,null,null,"Шаблон 14.1",null,"Лицевой счет;ФИО;Адрес;Период;Сумма;Наименование счетчика1;Предыдущее показание счетчика 1;Наименование счетчика2;Предыдущее показание счетчика 2;Наименование счетчика3;Предыдущее показание счетчика 3;Наименование счетчика4;Предыдущее показание счетчика 4;Наименование счетчика5;Предыдущее показание счетчика 5;Наименование счетчика6;Предыдущее показание счетчика 6;Наименование счетчика7;Предыдущее показание счетчика 7;Наименование счетчика8;Предыдущее показание счетчика 8;Наименование счетчика9;Предыдущее показание счетчика 9;Наименование счетчика10;Предыдущее показание счетчика 10;Наименование счетчика11;Предыдущее показание счетчика 11;Наименование счетчика12;Предыдущее показание счетчика 12"]
[null,null,null,null,null,null,null,null,null,null,null,null,null,null,null,null,null,null,null,"Шаблон 16.3",null,{"$f":"\"ФИО;\" & G1 & \";\" &G2&\";\"&G3&\";КБК;ОКТМО;Сумма\"","v":"ФИО;;;;КБК;ОКТМО;Сумма"}]
[null,null,null,null,null,null,null,null,null,null,null,null,null,null,null,null,null,null,null,"42_ЛТШ_3_2",null,"Табельный номер ребенка;Код группы;ФИО ребенка;Период;Сумма"]
[null,null,null,null,null,null,null,null,null,null,null,null,null,null,null,null,null,null,null,"70_ЛТШ_3_1",null,"КБК;ОКТМО;Лицевой счет;Код услуги;Наименование услуги;ФИО ребенка;ФИО;Сумма"]
[null,null,null,null,null,null,null,null,null,null,null,null,null,null,null,null,null,null,null,"Шаблон 38_ЛТШ_4_2",null,"Номер машиноместа;Период оплаты;ФИО;Адрес;Сумма"]
[null,null,null,null,null,null,null,null,null,null,null,null,null,null,null,null,null,null,null,"MOSK_VUZ",null,"ФИО обучающегося;Назначение;Номер договора;Дата;КБК;ОКТМО;ФИО;Адрес;Сумма"]
[null,null,null,null,null,null,null,null,null,null,null,null,null,null,null,null,null,null,null,"ALL_PFR",null,"ФИО;Назначение;СНИЛС;КБК;ОКТМО;УИН;ИНН"]
[]
[]
[]
[]
[]
[]
[]
[]
[]
[]
[]
[]
[]
[]
[]
[]
[]
[]
[]
[]
[]
[]
[]
[]
[]
[]
[null,null,null,null,null,null,null,null,"ФИО;Назначение;СНИЛС;КБК;ОКТМО;УИН;ИНН"]
[]
[]
[]
[]
[]
[]
[]
["ALL_PFR",1,1,0,"VID_PLAT",null,3,"Да","Вид платежа","Двумерный штрих-код универсальный с универсальной проверкой","Да","Выберите вид платежа из списка",null,"ДОПОЛНИТЕЛЬНЫЕ ВЗНОСЫ;СТРАХОВЫЕ ВЗНОСЫ НА ВЫПЛАТУ СТРАХОВОЙ ПЕНСИИ;ВЗЫСКАНИЯ/ШТРАФЫ ПО СТРАХ. ВЗНОСАМ НА ВЫПЛАТУ СТРАХ.ПЕНСИИ;ВОЗВРАТ ПЕРЕПЛАТЫ ПЕНСИИ;ВОЗВРАТ (КРОМЕ ПЕРЕПЛАТЫ ПЕНСИИ);ДЕНЕЖНЫЕ ВЗЫСКАНИЯ (ШТРАФЫ);",0,100,"Список","{0}"]
["ALL_PFR",20,2,0,"КБК",null,4,"Да","КБК",null,"Нет","Проверьте значение КБК","^\\d{20}$",null,20,20,"Строка","{1}"]
["ALL_PFR",30,2,0,"NAZN",null,2,"Да","Назначение платежа",null,"Нет","Введите дополнительную информацию для идентификации цели платежа",null,null,0,150,"Строка","{0}"]
["ALL_PFR",40,2,0,"ОКТМО",null,3,"Да","ОКТМО","Универсальный","Нет","Введите значение ОКТМО 8 цифр (не все нули)","^\\d{8}$",null,8,8,"Строка","{1}"]
["ALL_PFR",50,3,0,"УИН",null,1,"Да","УИН","Контроль ввода УИН формат 1.16.1 ГИС ГМП","Нет","Введите УИН",null,null,0,25,"Строка","{1}"]
["ALL_PFR",60,3,0,"СНИЛС",null,1,"Да","СНИЛС","Универсальный","Нет","Введите значение лицевого счета в пенсионном фонде (11 цифр)","^\\d{11}$",null,1,11,"Строка","{1}"]
["ALL_PFR",69,3,0,"РЕГ_НОМ",null,1,"Да","Регистрационный номер",null,"Нет","Введите Регистрационный номер в ПФР 12 цифр","^\\d{12}$",null,1,12,"Строка","{1}"]
["ALL_PFR",70,3,0,"ИНН",null,1,"Да","ИНН вносителя","Универсальный","Нет","Введите ИНН осуществляющего взнос (12 цифр)","^\\d{12}$",null,12,12,"Целое число","{1}"]
["ALL_PFR",80,3,0,"ВИД_ДОК",null,2,"Да","Вид документа",null,"Нет",null,null,"СНИЛС;ИНН;ПАСПОРТ РФ;СВИД О РОЖДЕНИИ;ВОДИТ УДОСТОВЕРЕНИЕ;СВИД_РЕГ_ТС;ПАСПОРТ МОРЯКА;УДОСТОВЕР ВОЕНСЛУЖ;ВОЕННЫЙ БИЛЕТ;СПРАВКА ОБ ОСВОБ;ВРЕМЕН УДОСТОВЕР;ПАСПОРТ ИН ГРАЖД;ВИД НА ЖИТЕЛЬСТВО;РАЗРЕШ ВРЕМ ПРОЖИВ;УДОСТОВЕР БЕЖЕНЦА;МИГРАЦИОННАЯ КАРТА;ПАСПОРТ СССР;ОХОТНИЧИЙ БИЛЕТ;РАЗРЕШ НА ОРУЖИЕ;",1,70,"Список","{0}"]
["ALL_PFR",90,3,0,"НОМЕР ДОКУМЕНТА",null,2,"Да","Номер документа",null,"Нет",null,null,null,0,12,"Строка","{0}"]
["ALL_PFR",100,3,0,"ГРАЖДАНСТВО",null,2,"Да","Страна, выдавшая документ",null,"Нет",null,null,"РОССИЯ;КИТАЙ;БЕЛАРУСЬ;УКРАИНА;КИРГИЗИЯ;УЗБЕКИСТАН;ТАДЖИКИСТАН;АБХАЗИЯ;АРМЕНИЯ;АЗЕРБАЙДЖАН;КАЗАХСТАН;ТУРКМЕНИЯ;ЮЖНАЯ ОСЕТИЯ;ГРУЗИЯ;ЭСТОНИЯ;ЛАТВИЯ;ЛИТВА;МОЛДОВА;ИЗРАИЛЬ;КАНАДА;ГЕРМАНИЯ;НИДЕРЛАНДЫ;НОРВЕГИЯ;ФРАНЦИЯ;КОРЕЯ (РЕСПУБЛИКА);ИРАК;ШВЕЦИЯ;ХОРВАТИЯ;МЕКСИКА;ФИНЛЯНДИЯ;",1,70,"Список","{0}"]
["ALL_PFR",119,3,0,"FIO",null,3,"Да","ФИО","Универсальный","Нет","Введите фамилию, имя и отчество (при наличии) осуществляющего взнос полностью","^[А-ЯЁа-яё-]{2,30} [А-ЯЁа-яё -]{2,40}$",null,0,70,"Строка","{0}"]
["ALL_PFR",120,4,0,"ИПГУ",null,4,"Нет","Идентификатор плательщика услуги",null,"Нет",null,null,null,0,25,"Строка","{0}"]
["ALL_PFR",130,4,0,"УИП",null,4,"Нет","УИП",null,"Нет",null,null,null,1,32,"Строка","{0}"]
["ALL_PFR",140,4,0,"EXCLUDE_REQS",null,5,"Нет","EXCLUDE_REQS",null,"Нет",null,null,"EXCLUDE_REQS;",0,250,"Строка","{0}"]

{"sheet":"Шаблон ДШК","index":3,"n_rows":47,"n_cols":25,"rows_kept":47,"cut":false,"hidden":true,"merged":[[55,1,56,13],[55,24,56,36],[58,1,62,13],[58,24,62,36],[51,1,52,13],[51,24,52,36],[53,1,54,13],[53,24,54,36],[37,1,41,13],[37,24,41,36],[43,0,44,22],[43,23,44,45],[46,1,50,13],[46,24,50,36],[22,0,23,22],[22,23,23,45],[25,1,29,13],[25,24,29,36],[34,1,35,13],[34,24,35,36],[30,1,31,13],[30,24,31,36],[32,1,33,13],[32,24,33,36],[11,1,12,13],[11,24,12,36],[13,1,14,13],[13,24,14,36],[16,1,20,13],[16,24,20,36],[1,23,2,45],[4,1,8,13],[1,0,3,22],[4,24,8,36],[9,1,10,13],[9,24,10,36]]}
[]
[{"$f":"Name","v":" УФК по Челябинской области (Управление Министерства юстиции Российской Федерации по Челябинской области)"},null,null,null,null,null,null,null,null,null,null,null,null,null,null,null,null,null,null,null,null,null,null,{"$f":"Name","v":" УФК по Челябинской области (Управление Министерства юстиции Российской Федерации по Челябинской области)"}]
[]
[]
[null,{"$f":"\"ИНН \"&INN&\", БИК \"&BIC&\", Р/С \"&PersonalAcc","v":"ИНН 7453197647, БИК 047501001, Р/С 40101810400000010801"},null,null,null,null,null,null,null,null,null,null,null,null,null,null,null,null,null,null,null,null,null,null,{"$f":"\"ИНН \"&INN&\", БИК \"&BIC&\", Р/С \"&PersonalAcc","v":"ИНН 7453197647, БИК 047501001, Р/С 40101810400000010801"}]
[]
[]
[]
[]
[]
[]
[]
[]
[]
[]
[]
[]
[]
[]
[]
[]
[]
[{"$f":"Name","v":" УФК по Челябинской области (Управление Министерства юстиции Российской Федерации по Челябинской области)"},null,null,null,null,null,null,null,null,null,null,null,null,null,null,null,null,null,null,null,null,null,null,{"$f":"Name","v":" УФК по Челябинской области (Управление Министерства юстиции Российской Федерации по Челябинской области)"}]
[]
[]
[null,{"$f":"\"ИНН \"&INN&\", БИК \"&BIC&\", Р/С \"&PersonalAcc","v":"ИНН 7453197647, БИК 047501001, Р/С 40101810400000010801"},null,null,null,null,null,null,null,null,null,null,null,null,null,null,null,null,null,null,null,null,null,null,{"$f":"\"ИНН \"&INN&\", БИК \"&BIC&\", Р/С \"&PersonalAcc","v":"ИНН 7453197647, БИК 047501001, Р/С 40101810400000010801"}]
[]
[]
[]
[]
[]
[]
[]
[]
[]
[]
[]
[]
[]
[]
[]
[]
[]
[{"$f":"Name","v":" УФК по Челябинской области (Управление Министерства юстиции Российской Федерации по Челябинской области)"},null,null,null,null,null,null,null,null,null,null,null,null,null,null,null,null,null,null,null,null,null,null,{"$f":"Name","v":" УФК по Челябинской области (Управление Министерства юстиции Российской Федерации по Челябинской области)"}]
[]
[]
[null,{"$f":"\"ИНН \"&INN&\", БИК \"&BIC&\", Р/С \"&PersonalAcc","v":"ИНН 7453197647, БИК 047501001, Р/С 40101810400000010801"},null,null,null,null,null,null,null,null,null,null,null,null,null,null,null,null,null,null,null,null,null,null,{"$f":"\"ИНН \"&INN&\", БИК \"&BIC&\", Р/С \"&PersonalAcc","v":"ИНН 7453197647, БИК 047501001, Р/С 40101810400000010801"}]

{"sheet":"Шаблон ПД4","index":4,"n_rows":27,"n_cols":3,"rows_kept":27,"cut":false,"hidden":true,"merged":[[26,0,26,2]]}
[null,null,"ПАО СБЕРБАНК                                                                                                                  Форма №ПД-4"]
[null,"Извещение",{"$f":"Name","v":" УФК по Челябинской области (Управление Министерства юстиции Российской Федерации по Челябинской области)"}]
[null,null,"(наименование получателя платежа)"]
[null,null,{"$f":"\"  ИНН \"&INN&\" КПП \"&KPP&\"                         \"&PersonalAcc","v":"  ИНН 7453197647 КПП 745101001                         40101810400000010801"}]
[null,null,"  (инн получателя платежа)                                                    (номер счёта получателя платежа)"]
[null,null,{"$f":"\"БИК \"&BIC&\" (\"&BankName&\")\"","v":"БИК 047501001 (Отделение Челябинск, г. Челябинск)"}]
[null,null,"(наименование банка получателя платежа)"]
[]
[null,null,"(назначение платежа)"]
[]
[null,null,"(сумма платежа)"]
[null,null,"С условиями приёма указанной в платёжном документе суммы, в т.ч. с суммой взимаемой платы за услуги  "]
[null,null,"банка, ознакомлен и согласен.                    Подпись плательщика                                        \\"]
[null,null,"ПАО СБЕРБАНК                                                                                                                       Форма №ПД-4"]
[null,"Квитанция",{"$f":"C2","v":" УФК по Челябинской области (Управление Министерства юстиции Российской Федерации по Челябинской области)"}]
[null,null,"(наименование получателя платежа)"]
[null,null,{"$f":"C4","v":"  ИНН 7453197647 КПП 745101001                         40101810400000010801"}]
[null,null,"  (инн получателя платежа)                                                        (номер счёта получателя платежа)"]
[null,null,{"$f":"C6","v":"БИК 047501001 (Отделение Челябинск, г. Челябинск)"}]
[null,null," (наименование банка получателя платежа)"]
[]
[null,null,"(назначение платежа)"]
[]
[null,null,"(сумма платежа)"]
[null,null,"С условиями приёма указанной в платёжном документе суммы, в т.ч. с суммой взимаемой платы за услуги  "]
[null,null,"банка, ознакомлен и согласен.                    Подпись плательщика                                        \\"]
["-----------------------------------------------------------------------------------------------------------------"]

{"sheet":"Карточки ДШК","index":5,"n_rows":992,"n_cols":25,"rows_kept":992,"cut":false,"hidden":true,"merged":[[998,1,999,13],[998,24,999,36],[1000,1,1001,13],[1000,24,1001,36],[1003,1,1007,13],[1003,24,1007,36],[988,0,989,22],[988,23,989,45],[991,1,995,13],[991,24,995,36],[996,1,997,13],[996,24,997,36],[977,1,978,13],[977,24,978,36],[979,1,980,13],[979,24,980,36],[982,1,986,13],[982,24,986,36],[967,0,968,22],[967,23,968,45],[970,1,974,13],[970,24,974,36],[975,1,976,13],[975,24,976,36],[956,1,957,13],[956,24,957,36],[958,1,959,13],[958,24,959,36],[961,1,965,13],[961,24,965,36],[946,0,948,22],[946,23,947,45],[949,1,953,13],[949,24,953,36],[954,1,955,13],[954,24,955,36],[935,1,936,13],[935,24,936,36],[937,1,938,13],[937,24,938,36],[940,1,944,13],[940,24,944,36],[925,0,926,22],[925,23,926,45],[928,1,932,13],[928,24,932,36],[933,1,934,13],[933,24,934,36],[914,1,915,13],[914,24,915,36],[916,1,917,13],[916,24,917,36],[919,1,923,13],[919,24,923,36],[904,0,905,22],[904,23,905,45],[907,1,911,13],[907,24,911,36],[912,1,913,13],[912,24,913,36],[893,1,894,13],[893,24,894,36],[895,1,896,13],[895,24,896,36],[898,1,902,13],[898,24,902,36],[883,0,885,22],[883,23,884,45],[886,1,890,13],[886,24,890,36],[891,1,892,13],[891,24,892,36],[872,1,873,13],[872,24,873,36],[874,1,875,13],[874,24,875,36],[877,1,881,13],[877,24,881,36],[862,0,863,22],[862,23,863,45],[865,1,869,13],[865,24,869,36],[870,1,871,13],[870,24,871,36],[851,1,852,13],[851,24,852,36],[853,1,854,13],[853,24,854,36],[856,1,860,13],[856,24,860,36],[841,0,842,22],[841,23,842,45],[844,1,848,13],[844,24,848,36],[849,1,850,13],[849,24,850,36],[830,1,831,13],[830,24,831,36],[832,1,833,13],[832,24,833,36],[835,1,839,13],[835,24,839,36],[820,0,822,22],[820,23,821,45],[823,1,827,13],[823,24,827,36],[828,1,829,13],[828,24,829,36],[809,1,810,13],[809,24,810,36],[811,1,812,13],[811,24,812,36],[814,1,818,13],[814,24,818,36],[799,0,800,22],[799,23,800,45],[802,1,806,13],[802,24,806,36],[807,1,808,13],[807,24,808,36],[788,1,789,13],[788,24,789,36],[790,1,791,13],[790,24,791,36],[793,1,797,13],[793,24,797,36],[778,0,779,22],[778,23,779,45],[781,1,785,13],[781,24,785,36],[786,1,787,13],[786,24,787,36],[767,1,768,13],[767,24,768,36],[769,1,770,13],[769,24,770,36],[772,1,776,13],[772,24,776,36],[757,0,759,22],[757,23,758,45],[760,1,764,13],[760,24,764,36],[765,1,766,13],[765,24,766,36],[746,1,747,13],[746,24,747,36],[748,1,749,13],[748,24,749,36],[751,1,755,13],[751,24,755,36],[736,0,737,22],[736,23,737,45],[739,1,743,13],[739,24,743,36],[744,1,745,13],[744,24,745,36],[725,1,726,13],[725,24,726,36],[727,1,728,13],[727,24,728,36],[730,1,734,13],[730,24,734,36],[715,0,716,22],[715,23,716,45],[718,1,722,13],[718,24,722,36],[723,1,724,13],[723,24,724,36],[704,1,705,13],[704,24,705,36],[706,1,707,13],[706,24,707,36],[709,1,713,13],[709,24,713,36],[694,0,696,22],[694,23,695,45],[697,1,701,13],[697,24,701,36],[702,1,703,13],[702,24,703,36],[683,1,684,13],[683,24,684,36],[685,1,686,13],[685,24,686,36],[688,1,692,13],[688,24,692,36],[673,0,674,22],[673,23,674,45],[676,1,680,13],[676,24,680,36],[681,1,682,13],[681,24,682,36],[662,1,663,13],[662,24,663,36],[664,1,665,13],[664,24,665,36],[667,1,671,13],[667,24,671,36],[652,0,653,22],[652,23,653,45],[655,1,659,13],[655,24,659,36],[660,1,661,13],[660,24,661,36],[641,1,642,13],[641,24,642,36],[643,1,644,13],[643,24,644,36],[646,1,650,13],[646,24,650,36],[631,0,633,22],[631,23,632,45],[634,1,638,13],[634,24,638,36],[639,1,640,13],[639,24,640,36],[620,1,621,13],[620,24,621,36],[622,1,623,13],[622,24,623,36],[625,1,629,13],[625,24,629,36],[610,0,611,22],[610,23,611,45],[613,1,617,13],[613,24,617,36],[618,1,619,13],[618,24,619,36],[599,1,600,13],[599,24,600,36],[601,1,602,13],[601,24,602,36],[604,1,608,13],[604,24,608,36],[589,0,590,22],[589,23,590,45],[592,1,596,13],[592,24,596,36],[597,1,598,13],[597,24,598,36],[578,1,579,13],[578,24,579,36],[580,1,581,13],[580,24,581,36],[583,1,587,13],[583,24,587,36],[568,0,570,22],[568,23,569,45],[571,1,575,13],[571,24,575,36],[576,1,577,13],[576,24,577,36],[557,1,558,13],[557,24,558,36],[559,1,560,13],[559,24,560,36],[562,1,566,13],[562,24,566,36],[547,0,548,22],[547,23,548,45],[550,1,554,13],[550,24,554,36],[555,1,556,13],[555,24,556,36],[536,1,537,13],[536,24,537,36],[538,1,539,13],[538,24,539,36],[541,1,545,13],[541,24,545,36],[526,0,527,22],[526,23,527,45],[529,1,533,13],[529,24,533,36],[534,1,535,13],[534,24,535,36],[515,1,516,13],[515,24,516,36],[517,1,518,13],[517,24,518,36],[520,1,524,13],[520,24,524,36],[505,0,507,22],[505,23,506,45],[508,1,512,13],[508,24,512,36],[513,1,514,13],[513,24,514,36],[494,1,495,13],[494,24,495,36],[496,1,497,13],[496,24,497,36],[499,1,503,13],[499,24,503,36],[484,0,485,22],[484,23,485,45],[487,1,491,13],[487,24,491,36],[492,1,493,13],[492,24,493,36],[473,1,474,13],[473,24,474,36],[475,1,476,13],[475,24,476,36],[478,1,482,13],[478,24,482,36],[463,0,464,22],[463,23,464,45],[466,1,470,13],[466,24,470,36],[471,1,472,13],[471,24,472,36],[452,1,453,13],[452,24,453,36],[454,1,455,13],[454,24,455,36],[457,1,461,13],[457,24,461,36],[442,0,444,22],[442,23,443,45],[445,1,449,13],[445,24,449,36],[450,1,451,13],[450,24,451,36],[431,1,432,13],[431,24,432,36],[433,1,434,13],[433,24,434,36],[436,1,440,13],[436,24,440,36],[421,0,422,22],[421,23,422,45],[424,1,428,13],[424,24,428,36],[429,1,430,13],[429,24,430,36],[410,1,411,13],[410,24,411,36],[412,1,413,13],[412,24,413,36],[415,1,419,13],[415,24,419,36],[400,0,401,22],[400,23,401,45],[403,1,407,13],[403,24,407,36],[408,1,409,13],[408,24,409,36],[389,1,390,13],[389,24,390,36],[391,1,392,13],[391,24,392,36],[394,1,398,13],[394,24,398,36],[379,0,381,22],[379,23,380,45],[382,1,386,13],[382,24,386,36],[387,1,388,13],[387,24,388,36],[368,1,369,13],[368,24,369,36],[370,1,371,13],[370,24,371,36],[373,1,377,13],[373,24,377,36],[358,0,359,22],[358,23,359,45],[361,1,365,13],[361,24,365,36],[366,1,367,13],[366,24,367,36],[347,1,348,13],[347,24,348,36],[349,1,350,13],[349,24,350,36],[352,1,356,13],[352,24,356,36],[337,0,338,22],[337,23,338,45],[340,1,344,13],[340,24,344,36],[345,1,346,13],[345,24,346,36],[326,1,327,13],[326,24,327,36],[328,1,329,13],[328,24,329,36],[331,1,335,13],[331,24,335,36],[316,0,318,22],[316,23,317,45],[319,1,323,13],[319,24,323,36],[324,1,325,13],[324,24,325,36],[305,1,306,13],[305,24,306,36],[307,1,308,13],[307,24,308,36],[310,1,314,13],[310,24,314,36],[295,0,296,22],[295,23,296,45],[298,1,302,13],[298,24,302,36],[303,1,304,13],[303,24,304,36],[284,1,285,13],[284,24,285,36],[286,1,287,13],[286,24,287,36],[289,1,293,13],[289,24,293,36],[274,0,275,22],[274,23,275,45],[277,1,281,13],[277,24,281,36],[282,1,283,13],[282,24,283,36],[263,1,264,13],[263,24,264,36],[265,1,266,13],[265,24,266,36],[268,1,272,13],[268,24,272,36],[253,0,255,22],[253,23,254,45],[256,1,260,13],[256,24,260,36],[261,1,262,13],[261,24,262,36],[242,1,243,13],[242,24,243,36],[244,1,245,13],[244,24,245,36],[247,1,251,13],[247,24,251,36],[232,0,233,22],[232,23,233,45],[235,1,239,13],[235,24,239,36],[240,1,241,13],[240,24,241,36],[221,1,222,13],[221,24,222,36],[223,1,224,13],[223,24,224,36],[226,1,230,13],[226,24,230,36],[211,0,212,22],[211,23,212,45],[214,1,218,13],[214,24,218,36],[219,1,220,13],[219,24,220,36],[200,1,201,13],[200,24,201,36],[202,1,203,13],[202,24,203,36],[205,1,209,13],[205,24,209,36],[190,0,192,22],[190,23,191,45],[193,1,197,13],[193,24,197,36],[198,1,199,13],[198,24,199,36],[179,1,180,13],[179,24,180,36],[181,1,182,13],[181,24,182,36],[184,1,188,13],[184,24,188,36],[169,0,170,22],[169,23,170,45],[172,1,176,13],[172,24,176,36],[177,1,178,13],[177,24,178,36],[158,1,159,13],[158,24,159,36],[160,1,161,13],[160,24,161,36],[163,1,167,13],[163,24,167,36],[148,0,149,22],[148,23,149,45],[151,1,155,13],[151,24,155,36],[156,1,157,13],[156,24,157,36],[137,1,138,13],[137,24,138,36],[139,1,140,13],[139,24,140,36],[142,1,146,13],[142,24,146,36],[127,0,129,22],[127,23,128,45],[130,1,134,13],[130,24,134,36],[135,1,136,13],[135,24,136,36],[116,1,117,13],[116,24,117,36],[118,1,119,13],[118,24,119,36],[121,1,125,13],[121,24,125,36],[106,0,107,22],[106,23,107,45],[109,1,113,13],[109,24,113,36],[114,1,115,13],[114,24,115,36],[95,1,96,13],[95,24,96,36],[97,1,98,13],[97,24,98,36],[100,1,104,13],[100,24,104,36],[85,0,86,22],[85,23,86,45],[88,1,92,13],[88,24,92,36],[93,1,94,13],[93,24,94,36],[74,1,75,13],[74,24,75,36],[76,1,77,13],[76,24,77,36],[79,1,83,13],[79,24,83,36],[64,0,66,22],[64,23,65,45],[67,1,71,13],[67,24,71,36],[72,1,73,13],[72,24,73,36],[53,1,54,13],[53,24,54,36],[55,1,56,13],[55,24,56,36],[58,1,62,13],[58,24,62,36],[43,0,44,22],[43,23,44,45],[46,1,50,13],[46,24,50,36],[51,1,52,13],[51,24,52,36],[32,1,33,13],[32,24,33,36],[34,1,35,13],[34,24,35,36],[37,1,41,13],[37,24,41,36],[22,0,23,22],[22,23,23,45],[25,1,29,13],[25,24,29,36],[30,1,31,13],[30,24,31,36],[11,1,12,13],[11,24,12,36],[13,1,14,13],[13,24,14,36],[16,1,20,13],[16,24,20,36],[1,0,3,22],[1,23,2,45],[4,1,8,13],[4,24,8,36],[9,1,10,13],[9,24,10,36]]}
[]
[{"$f":"Name","v":" УФК по Челябинской области (Управление Министерства юстиции Российской Федерации по Челябинской области)"},null,null,null,null,null,null,null,null,null,null,null,null,null,null,null,null,null,null,null,null,null,null,{"$f":"Name","v":" УФК по Челябинской области (Управление Министерства юстиции Российской Федерации по Челябинской области)"}]
[]
[]
[null,{"$f":"\"ИНН \"&INN&\", БИК \"&BIC&\", Р/С \"&PersonalAcc","v":"ИНН 7453197647, БИК 047501001, Р/С 40101810400000010801"},null,null,null,null,null,null,null,null,null,null,null,null,null,null,null,null,null,null,null,null,null,null,{"$f":"\"ИНН \"&INN&\", БИК \"&BIC&\", Р/С \"&PersonalAcc","v":"ИНН 7453197647, БИК 047501001, Р/С 40101810400000010801"}]
[]
[]
[]
[]
[null,"ЛС: 76КР-01-2",null,null,null,null,null,null,null,null,null,null,null,null,null,null,null,null,null,null,null,null,null,null,"ЛС: 76КР-01-1"]
[]
[null,"Период: Январь 2019",null,null,null,null,null,null,null,null,null,null,null,null,null,null,null,null,null,null,null,null,null,null,"Период: Январь 2019"]
[]
[null,"Сумма: 88.57",null,null,null,null,null,null,null,null,null,null,null,null,null,null,null,null,null,null,null,null,null,null,"Сумма: 5005.00"]
[]
[]
[null,"г.Тимашевск,поселок сахарного завода,дом 76, кв1",null,null,null,null,null,null,null,null,null,null,null,null,null,null,null,null,null,null,null,null,null,null,"г.Тимашевск,поселок сахарного завода,дом 76, кв1"]
[]
[]
[]
[]
[]
[{"$f":"Name","v":" УФК по Челябинской области (Управление Министерства юстиции Российской Федерации по Челябинской области)"},null,null,null,null,null,null,null,null,null,null,null,null,null,null,null,null,null,null,null,null,null,null,{"$f":"Name","v":" УФК по Челябинской области (Управление Министерства юстиции Российской Федерации по Челябинской области)"}]
[]
[]
[null,{"$f":"\"ИНН \"&INN&\", БИК \"&BIC&\", Р/С \"&PersonalAcc","v":"ИНН 7453197647, БИК 047501001, Р/С 40101810400000010801"},null,null,null,null,null,null,null,null,null,null,null,null,null,null,null,null,null,null,null,null,null,null,{"$f":"\"ИНН \"&INN&\", БИК \"&BIC&\", Р/С \"&PersonalAcc","v":"ИНН 7453197647, БИК 047501001, Р/С 40101810400000010801"}]
[]
[]
[]
[]
[null,"ЛС: 76КР-01-2",null,null,null,null,null,null,null,null,null,null,null,null,null,null,null,null,null,null,null,null,null,null,"ЛС: 76КР-02-0"]
[]
[null,"Период: Январь 2019",null,null,null,null,null,null,null,null,null,null,null,null,null,null,null,null,null,null,null,null,null,null,"Период: Январь 2019"]
[]
[null,"Сумма: 5005.00",null,null,null,null,null,null,null,null,null,null,null,null,null,null,null,null,null,null,null,null,null,null,"Сумма: 9124.00"]
[]
[]
[null,"г.Тимашевск,поселок сахарного завода,дом 76, кв1",null,null,null,null,null,null,null,null,null,null,null,null,null,null,null,null,null,null,null,null,null,null,"г.Тимашевск,поселок сахарного завода,дом 76, кв2"]
[]
[]
[]
[]
[]
[{"$f":"Name","v":" УФК по Челябинской области (Управление Министерства юстиции Российской Федерации по Челябинской области)"},null,null,null,null,null,null,null,null,null,null,null,null,null,null,null,null,null,null,null,null,null,null,{"$f":"Name","v":" УФК по Челябинской области (Управление Министерства юстиции Российской Федерации по Челябинской области)"}]
[]
[]
[null,{"$f":"\"ИНН \"&INN&\", БИК \"&BIC&\", Р/С \"&PersonalAcc","v":"ИНН 7453197647, БИК 047501001, Р/С 40101810400000010801"},null,null,null,null,null,null,null,null,null,null,null,null,null,null,null,null,null,null,null,null,null,null,{"$f":"\"ИНН \"&INN&\", БИК \"&BIC&\", Р/С \"&PersonalAcc","v":"ИНН 7453197647, БИК 047501001, Р/С 40101810400000010801"}]
[]
[]
[]
[]
[null,"ЛС: 76КР-03-0",null,null,null,null,null,null,null,null,null,null,null,null,null,null,null,null,null,null,null,null,null,null,"ЛС: 76КР-04-0"]
[]
[null,"Период: Январь 2019",null,null,null,null,null,null,null,null,null,null,null,null,null,null,null,null,null,null,null,null,null,null,"Период: Январь 2019"]
[]
[null,"Сумма: 813.96",null,null,null,null,null,null,null,null,null,null,null,null,null,null,null,null,null,null,null,null,null,null,"Сумма: 11934.15"]
[]
[]
[null,"г.Тимашевск,поселок сахарного завода,дом 76, кв3",null,null,null,null,null,null,null,null,null,null,null,null,null,null,null,null,null,null,null,null,null,null,"г.Тимашевск,поселок сахарного завода,дом 76, кв4"]
[]
[]
[]
[]
[]
[{"$f":"Name","v":" УФК по Челябинской области (Управление Министерства юстиции Российской Федерации по Челябинской области)"},null,null,null,null,null,null,null,null,null,null,null,null,null,null,null,null,null,null,null,null,null,null,{"$f":"Name","v":" УФК по Челябинской области (Управление Министерства юстиции Российской Федерации по Челябинской области)"}]
[]
[]
[null,{"$f":"\"ИНН \"&INN&\", БИК \"&BIC&\", Р/С \"&PersonalAcc","v":"ИНН 7453197647, БИК 047501001, Р/С 40101810400000010801"},null,null,null,null,null,null,null,null,null,null,null,null,null,null,null,null,null,null,null,null,null,null,{"$f":"\"ИНН \"&INN&\", БИК \"&BIC&\", Р/С \"&PersonalAcc","v":"ИНН 7453197647, БИК 047501001, Р/С 40101810400000010801"}]
[]
[]
[]
[]
[null,"ЛС: 76КР-05-0",null,null,null,null,null,null,null,null,null,null,null,null,null,null,null,null,null,null,null,null,null,null,"ЛС: 76КР-06-0"]
[]
[null,"Период: Январь 2019",null,null,null,null,null,null,null,null,null,null,null,null,null,null,null,null,null,null,null,null,null,null,"Период: Январь 2019"]
[]
[null,"Сумма: 564.99",null,null,null,null,null,null,null,null,null,null,null,null,null,null,null,null,null,null,null,null,null,null,"Сумма: 821.94"]
[]
[]
[null,"г.Тимашевск,поселок сахарного завода,дом 76, кв5",null,null,null,null,null,null,null,null,null,null,null,null,null,null,null,null,null,null,null,null,null,null,"г.Тимашевск,поселок сахарного завода,дом 76, кв6"]
[]
[]
[]
[]
[]
[{"$f":"Name","v":" УФК по Челябинской области (Управление Министерства юстиции Российской Федерации по Челябинской области)"},null,null,null,null,null,null,null,null,null,null,null,null,null,null,null,null,null,null,null,null,null,null,{"$f":"Name","v":" УФК по Челябинской области (Управление Министерства юстиции Российской Федерации по Челябинской области)"}]
[]
[]
[null,{"$f":"\"ИНН \"&INN&\", БИК \"&BIC&\", Р/С \"&PersonalAcc","v":"ИНН 7453197647, БИК 047501001, Р/С 40101810400000010801"},null,null,null,null,null,null,null,null,null,null,null,null,null,null,null,null,null,null,null,null,null,null,{"$f":"\"ИНН \"&INN&\", БИК \"&BIC&\", Р/С \"&PersonalAcc","v":"ИНН 7453197647, БИК 047501001, Р/С 40101810400000010801"}]
[]
[]
[]
[]
[null,"ЛС: 76КР-07-0",null,null,null,null,null,null,null,null,null,null,null,null,null,null,null,null,null,null,null,null,null,null,"ЛС: 76КР-08-0"]
[]
[null,"Период: Январь 2019",null,null,null,null,null,null,null,null,null,null,null,null,null,null,null,null,null,null,null,null,null,null,"Период: Январь 2019"]
[]
[null,"Сумма: 10640.00",null,null,null,null,null,null,null,null,null,null,null,null,null,null,null,null,null,null,null,null,null,null,"Сумма: -191.40"]
[]
[]
[null,"г.Тимашевск,поселок сахарного завода,дом 76, кв7",null,null,null,null,null,null,null,null,null,null,null,null,null,null,null,null,null,null,null,null,null,null,"г.Тимашевск,поселок сахарного завода,дом 76, кв8"]
[]
[]
[]
[]
[]
[{"$f":"Name","v":" УФК по Челябинской области (Управление Министерства юстиции Российской Федерации по Челябинской области)"},null,null,null,null,null,null,null,null,null,null,null,null,null,null,null,null,null,null,null,null,null,null,{"$f":"Name","v":" УФК по Челябинской области (Управление Министерства юстиции Российской Федерации по Челябинской области)"}]
[]
[]
[null,{"$f":"\"ИНН \"&INN&\", БИК \"&BIC&\", Р/С \"&PersonalAcc","v":"ИНН 7453197647, БИК 047501001, Р/С 40101810400000010801"},null,null,null,null,null,null,null,null,null,null,null,null,null,null,null,null,null,null,null,null,null,null,{"$f":"\"ИНН \"&INN&\", БИК \"&BIC&\", Р/С \"&PersonalAcc","v":"ИНН 7453197647, БИК 047501001, Р/С 40101810400000010801"}]
[]
[]
[]
[]
[null,"ЛС: 76КР-09-0",null,null,null,null,null,null,null,null,null,null,null,null,null,null,null,null,null,null,null,null,null,null,"ЛС: 76КР-10-0"]
[]
[null,"Период: Январь 2019",null,null,null,null,null,null,null,null,null,null,null,null,null,null,null,null,null,null,null,null,null,null,"Период: Январь 2019"]
[]
[null,"Сумма: 817.14",null,null,null,null,null,null,null,null,null,null,null,null,null,null,null,null,null,null,null,null,null,null,"Сумма: 1419.36"]
[]
[]
[null,"г.Тимашевск,поселок сахарного завода,дом 76, кв9",null,null,null,null,null,null,null,null,null,null,null,null,null,null,null,null,null,null,null,null,null,null,"г.Тимашевск,поселок сахарного завода,дом 76, кв10"]
[]
[]
[]
[]
[]
[{"$f":"Name","v":" УФК по Челябинской области (Управление Министерства юстиции Российской Федерации по Челябинской области)"},null,null,null,null,null,null,null,null,null,null,null,null,null,null,null,null,null,null,null,null,null,null,{"$f":"Name","v":" УФК по Челябинской области (Управление Министерства юстиции Российской Федерации по Челябинской области)"}]
[]
[]
[null,{"$f":"\"ИНН \"&INN&\", БИК \"&BIC&\", Р/С \"&PersonalAcc","v":"ИНН 7453197647, БИК 047501001, Р/С 40101810400000010801"},null,null,null,null,null,null,null,null,null,null,null,null,null,null,null,null,null,null,null,null,null,null,{"$f":"\"ИНН \"&INN&\", БИК \"&BIC&\", Р/С \"&PersonalAcc","v":"ИНН 7453197647, БИК 047501001, Р/С 40101810400000010801"}]
[]
[]
[]
[]
[null,"ЛС: 76КР-11-0",null,null,null,null,null,null,null,null,null,null,null,null,null,null,null,null,null,null,null,null,null,null,"ЛС: 76КР-12-0"]
[]
[null,"Период: Январь 2019",null,null,null,null,null,null,null,null,null,null,null,null,null,null,null,null,null,null,null,null,null,null,"Период: Январь 2019"]
[]
[null,"Сумма: 327.92",null,null,null,null,null,null,null,null,null,null,null,null,null,null,null,null,null,null,null,null,null,null,"Сумма: 451.52"]
[]
[]
[null,"г.Тимашевск,поселок сахарного завода,дом 76, кв11",null,null,null,null,null,null,null,null,null,null,null,null,null,null,null,null,null,null,null,null,null,null,"г.Тимашевск,поселок сахарного завода,дом 76, кв12"]
[]
[]
[]
[]
[]
[{"$f":"Name","v":" УФК по Челябинской области (Управление Министерства юстиции Российской Федерации по Челябинской области)"},null,null,null,null,null,null,null,null,null,null,null,null,null,null,null,null,null,null,null,null,null,null,{"$f":"Name","v":" УФК по Челябинской области (Управление Министерства юстиции Российской Федерации по Челябинской области)"}]
[]
[]
[null,{"$f":"\"ИНН \"&INN&\", БИК \"&BIC&\", Р/С \"&PersonalAcc","v":"ИНН 7453197647, БИК 047501001, Р/С 40101810400000010801"},null,null,null,null,null,null,null,null,null,null,null,null,null,null,null,null,null,null,null,null,null,null,{"$f":"\"ИНН \"&INN&\", БИК \"&BIC&\", Р/С \"&PersonalAcc","v":"ИНН 7453197647, БИК 047501001, Р/С 40101810400000010801"}]
[]
[]
[]
[]
[null,"ЛС: 76КР-12-1",null,null,null,null,null,null,null,null,null,null,null,null,null,null,null,null,null,null,null,null,null,null,"ЛС: 76КР-13-0"]
[]
[null,"Период: Январь 2019",null,null,null,null,null,null,null,null,null,null,null,null,null,null,null,null,null,null,null,null,null,null,"Период: Январь 2019"]
[]
[null,"Сумма: 180.88",null,null,null,null,null,null,null,null,null,null,null,null,null,null,null,null,null,null,null,null,null,null,"Сумма: 652.24"]
[]
[]
[null,"г.Тимашевск,поселок сахарного завода,дом 76, кв12",null,null,null,null,null,null,null,null,null,null,null,null,null,null,null,null,null,null,null,null,null,null,"г.Тимашевск,поселок сахарного завода,дом 76, кв13"]
[]
[]
[]
[]
[]
[{"$f":"Name","v":" УФК по Челябинской области (Управление Министерства юстиции Российской Федерации по Челябинской области)"},null,null,null,null,null,null,null,null,null,null,null,null,null,null,null,null,null,null,null,null,null,null,{"$f":"Name","v":" УФК по Челябинской области (Управление Министерства юстиции Российской Федерации по Челябинской области)"}]
[]
[]
[null,{"$f":"\"ИНН \"&INN&\", БИК \"&BIC&\", Р/С \"&PersonalAcc","v":"ИНН 7453197647, БИК 047501001, Р/С 40101810400000010801"},null,null,null,null,null,null,null,null,null,null,null,null,null,null,null,null,null,null,null,null,null,null,{"$f":"\"ИНН \"&INN&\", БИК \"&BIC&\", Р/С \"&PersonalAcc","v":"ИНН 7453197647, БИК 047501001, Р/С 40101810400000010801"}]
[]
[]
[]
[]
[null,"ЛС: 76КР-14-0",null,null,null,null,null,null,null,null,null,null,null,null,null,null,null,null,null,null,null,null,null,null,"ЛС: 76КР-15-0"]
[]
[null,"Период: Январь 2019",null,null,null,null,null,null,null,null,null,null,null,null,null,null,null,null,null,null,null,null,null,null,"Период: Январь 2019"]
[]
[null,"Сумма: 544.23",null,null,null,null,null,null,null,null,null,null,null,null,null,null,null,null,null,null,null,null,null,null,"Сумма: 410.97"]
[]
[]
[null,"г.Тимашевск,поселок сахарного завода,дом 76, кв14",null,null,null,null,null,null,null,null,null,null,null,null,null,null,null,null,null,null,null,null,null,null,"г.Тимашевск,поселок сахарного завода,дом 76, кв15"]
[]
[]
[]
[]
[]
[{"$f":"Name","v":" УФК по Челябинской области (Управление Министерства юстиции Российской Федерации по Челябинской области)"},null,null,null,null,null,null,null,null,null,null,null,null,null,null,null,null,null,null,null,null,null,null,{"$f":"Name","v":" УФК по Челябинской области (Управление Министерства юстиции Российской Федерации по Челябинской области)"}]
[]
[]
[null,{"$f":"\"ИНН \"&INN&\", БИК \"&BIC&\", Р/С \"&PersonalAcc","v":"ИНН 7453197647, БИК 047501001, Р/С 40101810400000010801"},null,null,null,null,null,null,null,null,null,null,null,null,null,null,null,null,null,null,null,null,null,null,{"$f":"\"ИНН \"&INN&\", БИК \"&BIC&\", Р/С \"&PersonalAcc","v":"ИНН 7453197647, БИК 047501001, Р/С 40101810400000010801"}]
[]
[]
[]
[]
[null,"ЛС: 76КР-15-1",null,null,null,null,null,null,null,null,null,null,null,null,null,null,null,null,null,null,null,null,null,null,"ЛС: 76КР-16-0"]
[]
[null,"Период: Январь 2019",null,null,null,null,null,null,null,null,null,null,null,null,null,null,null,null,null,null,null,null,null,null,"Период: Январь 2019"]
[]
[null,"Сумма: 410.97",null,null,null,null,null,null,null,null,null,null,null,null,null,null,null,null,null,null,null,null,null,null,"Сумма: 1315.11"]
[]
[]
[null,"г.Тимашевск,поселок сахарного завода,дом 76, кв15",null,null,null,null,null,null,null,null,null,null,null,null,null,null,null,null,null,null,null,null,null,null,"г.Тимашевск,поселок сахарного завода,дом 76, кв16"]
[]
[]
[]
[]
[]
[{"$f":"Name","v":" УФК по Челябинской области (Управление Министерства юстиции Российской Федерации по Челябинской области)"},null,null,null,null,null,null,null,null,null,null,null,null,null,null,null,null,null,null,null,null,null,null,{"$f":"Name","v":" УФК по Челябинской области (Управление Министерства юстиции Российской Федерации по Челябинской области)"}]
[]
[]
[null,{"$f":"\"ИНН \"&INN&\", БИК \"&BIC&\", Р/С \"&PersonalAcc","v":"ИНН 7453197647, БИК 047501001, Р/С 40101810400000010801"},null,null,null,null,null,null,null,null,null,null,null,null,null,null,null,null,null,null,null,null,null,null,{"$f":"\"ИНН \"&INN&\", БИК \"&BIC&\", Р/С \"&PersonalAcc","v":"ИНН 7453197647, БИК 047501001, Р/С 40101810400000010801"}]
[]
[]
[]
[]
[null,"ЛС: 76КР-17-0",null,null,null,null,null,null,null,null,null,null,null,null,null,null,null,null,null,null,null,null,null,null,"ЛС: 76КР-18-0"]
[]
[null,"Период: Январь 2019",null,null,null,null,null,null,null,null,null,null,null,null,null,null,null,null,null,null,null,null,null,null,"Период: Январь 2019"]
[]
[null,"Сумма: 995.91",null,null,null,null,null,null,null,null,null,null,null,null,null,null,null,null,null,null,null,null,null,null,"Сумма: 881.66"]
[]
[]
[null,"г.Тимашевск,поселок сахарного завода,дом 76, кв17",null,null,null,null,null,null,null,null,null,null,null,null,null,null,null,null,null,null,null,null,null,null,"г.Тимашевск,поселок сахарного завода,дом 76, кв18"]
[]
[]
[]
[]
[]
[{"$f":"Name","v":" УФК по Челябинской области (Управление Министерства юстиции Российской Федерации по Челябинской области)"},null,null,null,null,null,null,null,null,null,null,null,null,null,null,null,null,null,null,null,null,null,null,{"$f":"Name","v":" УФК по Челябинской области (Управление Министерства юстиции Российской Федерации по Челябинской области)"}]
[]
[]
[null,{"$f":"\"ИНН \"&INN&\", БИК \"&BIC&\", Р/С \"&PersonalAcc","v":"ИНН 7453197647, БИК 047501001, Р/С 40101810400000010801"},null,null,null,null,null,null,null,null,null,null,null,null,null,null,null,null,null,null,null,null,null,null,{"$f":"\"ИНН \"&INN&\", БИК \"&BIC&\", Р/С \"&PersonalAcc","v":"ИНН 7453197647, БИК 047501001, Р/С 40101810400000010801"}]
[]
[]
[]
[]
[null,"ЛС: 76КР-19-0",null,null,null,null,null,null,null,null,null,null,null,null,null,null,null,null,null,null,null,null,null,null,"ЛС: 76КР-20-0"]
[]
[null,"Период: Январь 2019",null,null,null,null,null,null,null,null,null,null,null,null,null,null,null,null,null,null,null,null,null,null,"Период: Январь 2019"]
[]
[null,"Сумма: 5426.40",null,null,null,null,null,null,null,null,null,null,null,null,null,null,null,null,null,null,null,null,null,null,"Сумма: 4178.66"]
[]
[]
[null,"г.Тимашевск,поселок сахарного завода,дом 76, кв19",null,null,null,null,null,null,null,null,null,null,null,null,null,null,null,null,null,null,null,null,null,null,"г.Тимашевск,поселок сахарного завода,дом 76, кв20"]
[]
[]
[]
[]
[]
[{"$f":"Name","v":" УФК по Челябинской области (Управление Министерства юстиции Российской Федерации по Челябинской области)"},null,null,null,null,null,null,null,null,null,null,null,null,null,null,null,null,null,null,null,null,null,null,{"$f":"Name","v":" УФК по Челябинской области (Управление Министерства юстиции Российской Федерации по Челябинской области)"}]
[]
[]
[null,{"$f":"\"ИНН \"&INN&\", БИК \"&BIC&\", Р/С \"&PersonalAcc","v":"ИНН 7453197647, БИК 047501001, Р/С 40101810400000010801"},null,null,null,null,null,null,null,null,null,null,null,null,null,null,null,null,null,null,null,null,null,null,{"$f":"\"ИНН \"&INN&\", БИК \"&BIC&\", Р/С \"&PersonalAcc","v":"ИНН 7453197647, БИК 047501001, Р/С 40101810400000010801"}]
[]
[]
[]
[]
[null,"ЛС: 76КР-21-0",null,null,null,null,null,null,null,null,null,null,null,null,null,null,null,null,null,null,null,null,null,null,"ЛС: 76КР-22-0"]
[]
[null,"Период: Январь 2019",null,null,null,null,null,null,null,null,null,null,null,null,null,null,null,null,null,null,null,null,null,null,"Период: Январь 2019"]
[]
[null,"Сумма: 4483.64",null,null,null,null,null,null,null,null,null,null,null,null,null,null,null,null,null,null,null,null,null,null,"Сумма: 1241.70"]
[]
[]
[null,"г.Тимашевск,поселок сахарного завода,дом 76, кв21",null,null,null,null,null,null,null,null,null,null,null,null,null,null,null,null,null,null,null,null,null,null,"г.Тимашевск,поселок сахарного завода,дом 76, кв22"]
[]
[]
[]
[]
[]
[{"$f":"Name","v":" УФК по Челябинской области (Управление Министерства юстиции Российской Федерации по Челябинской области)"},null,null,null,null,null,null,null,null,null,null,null,null,null,null,null,null,null,null,null,null,null,null,{"$f":"Name","v":" УФК по Челябинской области (Управление Министерства юстиции Российской Федерации по Челябинской области)"}]
[]
[]
[null,{"$f":"\"ИНН \"&INN&\", БИК \"&BIC&\", Р/С \"&PersonalAcc","v":"ИНН 7453197647, БИК 047501001, Р/С 40101810400000010801"},null,null,null,null,null,null,null,null,null,null,null,null,null,null,null,null,null,null,null,null,null,null,{"$f":"\"ИНН \"&INN&\", БИК \"&BIC&\", Р/С \"&PersonalAcc","v":"ИНН 7453197647, БИК 047501001, Р/С 40101810400000010801"}]
[]
[]
[]
[]
[null,"ЛС: 76КР-23-0",null,null,null,null,null,null,null,null,null,null,null,null,null,null,null,null,null,null,null,null,null,null,"ЛС: 76КР-24-0"]
[]
[null,"Период: Январь 2019",null,null,null,null,null,null,null,null,null,null,null,null,null,null,null,null,null,null,null,null,null,null,"Период: Январь 2019"]
[]
[null,"Сумма: 1003.27",null,null,null,null,null,null,null,null,null,null,null,null,null,null,null,null,null,null,null,null,null,null,"Сумма: 817.16"]
[]
[]
[null,"г.Тимашевск,поселок сахарного завода,дом 76, кв23",null,null,null,null,null,null,null,null,null,null,null,null,null,null,null,null,null,null,null,null,null,null,"г.Тимашевск,поселок сахарного завода,дом 76, кв24"]
[]
[]
[]
[]
[]
[{"$f":"Name","v":" УФК по Челябинской области (Управление Министерства юстиции Российской Федерации по Челябинской области)"},null,null,null,null,null,null,null,null,null,null,null,null,null,null,null,null,null,null,null,null,null,null,{"$f":"Name","v":" УФК по Челябинской области (Управление Министерства юстиции Российской Федерации по Челябинской области)"}]
[]
[]
[null,{"$f":"\"ИНН \"&INN&\", БИК \"&BIC&\", Р/С \"&PersonalAcc","v":"ИНН 7453197647, БИК 047501001, Р/С 40101810400000010801"},null,null,null,null,null,null,null,null,null,null,null,null,null,null,null,null,null,null,null,null,null,null,{"$f":"\"ИНН \"&INN&\", БИК \"&BIC&\", Р/С \"&PersonalAcc","v":"ИНН 7453197647, БИК 047501001, Р/С 40101810400000010801"}]
[]
[]
[]
[]
[null,"ЛС: 76КР-25-0",null,null,null,null,null,null,null,null,null,null,null,null,null,null,null,null,null,null,null,null,null,null,"ЛС: 76КР-26-0"]
[]
[null,"Период: Январь 2019",null,null,null,null,null,null,null,null,null,null,null,null,null,null,null,null,null,null,null,null,null,null,"Период: Январь 2019"]
[]
[null,"Сумма: 967.28",null,null,null,null,null,null,null,null,null,null,null,null,null,null,null,null,null,null,null,null,null,null,"Сумма: 10373.32"]
[]
[]
[null,"г.Тимашевск,поселок сахарного завода,дом 76, кв26",null,null,null,null,null,null,null,null,null,null,null,null,null,null,null,null,null,null,null,null,null,null,"г.Тимашевск,поселок сахарного завода,дом 76, кв25"]
[]
[]
[]
[]
[]
[{"$f":"Name","v":" УФК по Челябинской области (Управление Министерства юстиции Российской Федерации по Челябинской области)"},null,null,null,null,null,null,null,null,null,null,null,null,null,null,null,null,null,null,null,null,null,null,{"$f":"Name","v":" УФК по Челябинской области (Управление Министерства юстиции Российской Федерации по Челябинской области)"}]
[]
[]
[null,{"$f":"\"ИНН \"&INN&\", БИК \"&BIC&\", Р/С \"&PersonalAcc","v":"ИНН 7453197647, БИК 047501001, Р/С 40101810400000010801"},null,null,null,null,null,null,null,null,null,null,null,null,null,null,null,null,null,null,null,null,null,null,{"$f":"\"ИНН \"&INN&\", БИК \"&BIC&\", Р/С \"&PersonalAcc","v":"ИНН 7453197647, БИК 047501001, Р/С 40101810400000010801"}]
[]
[]
[]
[]
[null,"ЛС: 76КР-27-0",null,null,null,null,null,null,null,null,null,null,null,null,null,null,null,null,null,null,null,null,null,null,"ЛС: 76КР-27-1"]
[]
[null,"Период: Январь 2019",null,null,null,null,null,null,null,null,null,null,null,null,null,null,null,null,null,null,null,null,null,null,"Период: Январь 2019"]
[]
[null,"Сумма: 8215.59",null,null,null,null,null,null,null,null,null,null,null,null,null,null,null,null,null,null,null,null,null,null,"Сумма: 1171.98"]
[]
[]
[null,"г.Тимашевск,поселок сахарного завода,дом 76, кв27",null,null,null,null,null,null,null,null,null,null,null,null,null,null,null,null,null,null,null,null,null,null,"г.Тимашевск,поселок сахарного завода,дом 76, кв28"]
[]
[]
[]
[]
[]
[{"$f":"Name","v":" УФК по Челябинской области (Управление Министерства юстиции Российской Федерации по Челябинской области)"},null,null,null,null,null,null,null,null,null,null,null,null,null,null,null,null,null,null,null,null,null,null,{"$f":"Name","v":" УФК по Челябинской области (Управление Министерства юстиции Российской Федерации по Челябинской области)"}]
[]
[]
[null,{"$f":"\"ИНН \"&INN&\", БИК \"&BIC&\", Р/С \"&PersonalAcc","v":"ИНН 7453197647, БИК 047501001, Р/С 40101810400000010801"},null,null,null,null,null,null,null,null,null,null,null,null,null,null,null,null,null,null,null,null,null,null,{"$f":"\"ИНН \"&INN&\", БИК \"&BIC&\", Р/С \"&PersonalAcc","v":"ИНН 7453197647, БИК 047501001, Р/С 40101810400000010801"}]
[]
[]
[]
[]
[null,"ЛС: 76КР-28-0",null,null,null,null,null,null,null,null,null,null,null,null,null,null,null,null,null,null,null,null,null,null,"ЛС: 76КР-29-0"]
[]
[null,"Период: Январь 2019",null,null,null,null,null,null,null,null,null,null,null,null,null,null,null,null,null,null,null,null,null,null,"Период: Январь 2019"]
[]
[null,"Сумма: 1029.42",null,null,null,null,null,null,null,null,null,null,null,null,null,null,null,null,null,null,null,null,null,null,"Сумма: 837.90"]
[]
[]
[null,"г.Тимашевск,поселок сахарного завода,дом 76, кв30",null,null,null,null,null,null,null,null,null,null,null,null,null,null,null,null,null,null,null,null,null,null,"г.Тимашевск,поселок сахарного завода,дом 76, кв27"]
[]
[]
[]
[]
[]
[{"$f":"Name","v":" УФК по Челябинской области (Управление Министерства юстиции Российской Федерации по Челябинской области)"},null,null,null,null,null,null,null,null,null,null,null,null,null,null,null,null,null,null,null,null,null,null,{"$f":"Name","v":" УФК по Челябинской области (Управление Министерства юстиции Российской Федерации по Челябинской области)"}]
[]
[]
[null,{"$f":"\"ИНН \"&INN&\", БИК \"&BIC&\", Р/С \"&PersonalAcc","v":"ИНН 7453197647, БИК 047501001, Р/С 40101810400000010801"},null,null,null,null,null,null,null,null,null,null,null,null,null,null,null,null,null,null,null,null,null,null,{"$f":"\"ИНН \"&INN&\", БИК \"&BIC&\", Р/С \"&PersonalAcc","v":"ИНН 7453197647, БИК 047501001, Р/С 40101810400000010801"}]
[]
[]
[]
[]
[null,"ЛС: 76КР-30-0",null,null,null,null,null,null,null,null,null,null,null,null,null,null,null,null,null,null,null,null,null,null,"ЛС: 76КР-31-0"]
[]
[null,"Период: Январь 2019",null,null,null,null,null,null,null,null,null,null,null,null,null,null,null,null,null,null,null,null,null,null,"Период: Январь 2019"]
[]
[null,"Сумма: 553.80",null,null,null,null,null,null,null,null,null,null,null,null,null,null,null,null,null,null,null,null,null,null,"Сумма: 657.56"]
[]
[]
[null,"г.Тимашевск,поселок сахарного завода,дом 76, кв31",null,null,null,null,null,null,null,null,null,null,null,null,null,null,null,null,null,null,null,null,null,null,"г.Тимашевск,поселок сахарного завода,дом 76, кв32"]
[]
[]
[]
[]
[]
[{"$f":"Name","v":" УФК по Челябинской области (Управление Министерства юстиции Российской Федерации по Челябинской области)"},null,null,null,null,null,null,null,null,null,null,null,null,null,null,null,null,null,null,null,null,null,null,{"$f":"Name","v":" УФК по Челябинской области (Управление Министерства юстиции Российской Федерации по Челябинской области)"}]
[]
[]
[null,{"$f":"\"ИНН \"&INN&\", БИК \"&BIC&\", Р/С \"&PersonalAcc","v":"ИНН 7453197647, БИК 047501001, Р/С 40101810400000010801"},null,null,null,null,null,null,null,null,null,null,null,null,null,null,null,null,null,null,null,null,null,null,{"$f":"\"ИНН \"&INN&\", БИК \"&BIC&\", Р/С \"&PersonalAcc","v":"ИНН 7453197647, БИК 047501001, Р/С 40101810400000010801"}]
[]
[]
[]
[]
[null,"ЛС: 76КР-32-0",null,null,null,null,null,null,null,null,null,null,null,null,null,null,null,null,null,null,null,null,null,null,"ЛС: 76КР-33-0"]
[]
[null,"Период: Январь 2019",null,null,null,null,null,null,null,null,null,null,null,null,null,null,null,null,null,null,null,null,null,null,"Период: Январь 2019"]
[]
[null,"Сумма: 555.40",null,null,null,null,null,null,null,null,null,null,null,null,null,null,null,null,null,null,null,null,null,null,"Сумма: 563.40"]
[]
[]
[null,"г.Тимашевск,поселок сахарного завода,дом 76, кв29",null,null,null,null,null,null,null,null,null,null,null,null,null,null,null,null,null,null,null,null,null,null,"г.Тимашевск,поселок сахарного завода,дом 76, кв33"]
[]
[]
[]
[]
[]
[{"$f":"Name","v":" УФК по Челябинской области (Управление Министерства юстиции Российской Федерации по Челябинской области)"},null,null,null,null,null,null,null,null,null,null,null,null,null,null,null,null,null,null,null,null,null,null,{"$f":"Name","v":" УФК по Челябинской области (Управление Министерства юстиции Российской Федерации по Челябинской области)"}]
[]
[]
[null,{"$f":"\"ИНН \"&INN&\", БИК \"&BIC&\", Р/С \"&PersonalAcc","v":"ИНН 7453197647, БИК 047501001, Р/С 40101810400000010801"},null,null,null,null,null,null,null,null,null,null,null,null,null,null,null,null,null,null,null,null,null,null,{"$f":"\"ИНН \"&INN&\", БИК \"&BIC&\", Р/С \"&PersonalAcc","v":"ИНН 7453197647, БИК 047501001, Р/С 40101810400000010801"}]
[]
[]
[]
[]
[null,"ЛС: 76КР-34-0",null,null,null,null,null,null,null,null,null,null,null,null,null,null,null,null,null,null,null,null,null,null,"ЛС: 76КР-35-0"]
[]
[null,"Период: Январь 2019",null,null,null,null,null,null,null,null,null,null,null,null,null,null,null,null,null,null,null,null,null,null,"Период: Январь 2019"]
[]
[null,"Сумма: 9609.57",null,null,null,null,null,null,null,null,null,null,null,null,null,null,null,null,null,null,null,null,null,null,"Сумма: 813.96"]
[]
[]
[null,"г.Тимашевск,поселок сахарного завода,дом 76, кв34",null,null,null,null,null,null,null,null,null,null,null,null,null,null,null,null,null,null,null,null,null,null,"г.Тимашевск,поселок сахарного завода,дом 76, кв35"]
[]
[]
[]
[]
[]
[{"$f":"Name","v":" УФК по Челябинской области (Управление Министерства юстиции Российской Федерации по Челябинской области)"},null,null,null,null,null,null,null,null,null,null,null,null,null,null,null,null,null,null,null,null,null,null,{"$f":"Name","v":" УФК по Челябинской области (Управление Министерства юстиции Российской Федерации по Челябинской области)"}]
[]
[]
[null,{"$f":"\"ИНН \"&INN&\", БИК \"&BIC&\", Р/С \"&PersonalAcc","v":"ИНН 7453197647, БИК 047501001, Р/С 40101810400000010801"},null,null,null,null,null,null,null,null,null,null,null,null,null,null,null,null,null,null,null,null,null,null,{"$f":"\"ИНН \"&INN&\", БИК \"&BIC&\", Р/С \"&PersonalAcc","v":"ИНН 7453197647, БИК 047501001, Р/С 40101810400000010801"}]
[]
[]
[]
[]
[null,"ЛС: 76КР-36-0",null,null,null,null,null,null,null,null,null,null,null,null,null,null,null,null,null,null,null,null,null,null,"ЛС: 76КР-37-0"]
[]
[null,"Период: Январь 2019",null,null,null,null,null,null,null,null,null,null,null,null,null,null,null,null,null,null,null,null,null,null,"Период: Январь 2019"]
[]
[null,"Сумма: 9197.85",null,null,null,null,null,null,null,null,null,null,null,null,null,null,null,null,null,null,null,null,null,null,"Сумма: 6347.90"]
[]
[]
[null,"г.Тимашевск,поселок сахарного завода,дом 76, кв36",null,null,null,null,null,null,null,null,null,null,null,null,null,null,null,null,null,null,null,null,null,null,"г.Тимашевск,поселок сахарного завода,дом 76, кв37"]
[]
[]
[]
[]
[]
[{"$f":"Name","v":" УФК по Челябинской области (Управление Министерства юстиции Российской Федерации по Челябинской области)"},null,null,null,null,null,null,null,null,null,null,null,null,null,null,null,null,null,null,null,null,null,null,{"$f":"Name","v":" УФК по Челябинской области (Управление Министерства юстиции Российской Федерации по Челябинской области)"}]
[]
[]
[null,{"$f":"\"ИНН \"&INN&\", БИК \"&BIC&\", Р/С \"&PersonalAcc","v":"ИНН 7453197647, БИК 047501001, Р/С 40101810400000010801"},null,null,null,null,null,null,null,null,null,null,null,null,null,null,null,null,null,null,null,null,null,null,{"$f":"\"ИНН \"&INN&\", БИК \"&BIC&\", Р/С \"&PersonalAcc","v":"ИНН 7453197647, БИК 047501001, Р/С 40101810400000010801"}]
[]
[]
[]
[]
[null,"ЛС: 76КР-38-0",null,null,null,null,null,null,null,null,null,null,null,null,null,null,null,null,null,null,null,null,null,null,"ЛС: 76КР-39-0"]
[]
[null,"Период: Январь 2019",null,null,null,null,null,null,null,null,null,null,null,null,null,null,null,null,null,null,null,null,null,null,"Период: Январь 2019"]
[]
[null,"Сумма: 823.53",null,null,null,null,null,null,null,null,null,null,null,null,null,null,null,null,null,null,null,null,null,null,"Сумма: 553.80"]
[]
[]
[null,"г.Тимашевск,поселок сахарного завода,дом 76, кв38",null,null,null,null,null,null,null,null,null,null,null,null,null,null,null,null,null,null,null,null,null,null,"г.Тимашевск,поселок сахарного завода,дом 76, кв39"]
[]
[]
[]
[]
[]
[{"$f":"Name","v":" УФК по Челябинской области (Управление Министерства юстиции Российской Федерации по Челябинской области)"},null,null,null,null,null,null,null,null,null,null,null,null,null,null,null,null,null,null,null,null,null,null,{"$f":"Name","v":" УФК по Челябинской области (Управление Министерства юстиции Российской Федерации по Челябинской области)"}]
[]
[]
[null,{"$f":"\"ИНН \"&INN&\", БИК \"&BIC&\", Р/С \"&PersonalAcc","v":"ИНН 7453197647, БИК 047501001, Р/С 40101810400000010801"},null,null,null,null,null,null,null,null,null,null,null,null,null,null,null,null,null,null,null,null,null,null,{"$f":"\"ИНН \"&INN&\", БИК \"&BIC&\", Р/С \"&PersonalAcc","v":"ИНН 7453197647, БИК 047501001, Р/С 40101810400000010801"}]
[]
[]
[]
[]
[null,"ЛС: 76КР-40-0",null,null,null,null,null,null,null,null,null,null,null,null,null,null,null,null,null,null,null,null,null,null,"ЛС: 76КР-40-1"]
[]
[null,"Период: Январь 2019",null,null,null,null,null,null,null,null,null,null,null,null,null,null,null,null,null,null,null,null,null,null,"Период: Январь 2019"]
[]
[null,"Сумма: 5779.32",null,null,null,null,null,null,null,null,null,null,null,null,null,null,null,null,null,null,null,null,null,null,"Сумма: 11612.70"]
[]
[]
[null,"г.Тимашевск,поселок сахарного завода,дом 76, кв40",null,null,null,null,null,null,null,null,null,null,null,null,null,null,null,null,null,null,null,null,null,null,"г.Тимашевск,поселок сахарного завода,дом 76, кв40"]
[]
[]
[]
[]
[]
[{"$f":"Name","v":" УФК по Челябинской области (Управление Министерства юстиции Российской Федерации по Челябинской области)"},null,null,null,null,null,null,null,null,null,null,null,null,null,null,null,null,null,null,null,null,null,null,{"$f":"Name","v":" УФК по Челябинской области (Управление Министерства юстиции Российской Федерации по Челябинской области)"}]
[]
[]
[null,{"$f":"\"ИНН \"&INN&\", БИК \"&BIC&\", Р/С \"&PersonalAcc","v":"ИНН 7453197647, БИК 047501001, Р/С 40101810400000010801"},null,null,null,null,null,null,null,null,null,null,null,null,null,null,null,null,null,null,null,null,null,null,{"$f":"\"ИНН \"&INN&\", БИК \"&BIC&\", Р/С \"&PersonalAcc","v":"ИНН 7453197647, БИК 047501001, Р/С 40101810400000010801"}]
[]
[]
[]
[]
[null,"ЛС: 76КР-41-0",null,null,null,null,null,null,null,null,null,null,null,null,null,null,null,null,null,null,null,null,null,null,"ЛС: 76КР-42-0"]
[]
[null,"Период: Январь 2019",null,null,null,null,null,null,null,null,null,null,null,null,null,null,null,null,null,null,null,null,null,null,"Период: Январь 2019"]
[]
[null,"Сумма: 1021.26",null,null,null,null,null,null,null,null,null,null,null,null,null,null,null,null,null,null,null,null,null,null,"Сумма: 539.45"]
[]
[]
[null,"г.Тимашевск,поселок сахарного завода,дом 76, кв41",null,null,null,null,null,null,null,null,null,null,null,null,null,null,null,null,null,null,null,null,null,null,"г.Тимашевск,поселок сахарного завода,дом 76, кв42"]
[]
[]
[]
[]
[]
[{"$f":"Name","v":" УФК по Челябинской области (Управление Министерства юстиции Российской Федерации по Челябинской области)"},null,null,null,null,null,null,null,null,null,null,null,null,null,null,null,null,null,null,null,null,null,null,{"$f":"Name","v":" УФК по Челябинской области (Управление Министерства юстиции Российской Федерации по Челябинской области)"}]
[]
[]
[null,{"$f":"\"ИНН \"&INN&\", БИК \"&BIC&\", Р/С \"&PersonalAcc","v":"ИНН 7453197647, БИК 047501001, Р/С 40101810400000010801"},null,null,null,null,null,null,null,null,null,null,null,null,null,null,null,null,null,null,null,null,null,null,{"$f":"\"ИНН \"&INN&\", БИК \"&BIC&\", Р/С \"&PersonalAcc","v":"ИНН 7453197647, БИК 047501001, Р/С 40101810400000010801"}]
[]
[]
[]
[]
[null,"ЛС: 76КР-43-0",null,null,null,null,null,null,null,null,null,null,null,null,null,null,null,null,null,null,null,null,null,null,"ЛС: 76КР-44-0"]
[]
[null,"Период: Январь 2019",null,null,null,null,null,null,null,null,null,null,null,null,null,null,null,null,null,null,null,null,null,null,"Период: Январь 2019"]
[]
[null,"Сумма: 818.76",null,null,null,null,null,null,null,null,null,null,null,null,null,null,null,null,null,null,null,null,null,null,"Сумма: 8613.67"]
[]
[]
[null,"г.Тимашевск,поселок сахарного завода,дом 76, кв43",null,null,null,null,null,null,null,null,null,null,null,null,null,null,null,null,null,null,null,null,null,null,"г.Тимашевск,поселок сахарного завода,дом 76, кв44"]
[]
[]
[]
[]
[]
[{"$f":"Name","v":" УФК по Челябинской области (Управление Министерства юстиции Российской Федерации по Челябинской области)"},null,null,null,null,null,null,null,null,null,null,null,null,null,null,null,null,null,null,null,null,null,null,{"$f":"Name","v":" УФК по Челябинской области (Управление Министерства юстиции Российской Федерации по Челябинской области)"}]
[]
[]
[null,{"$f":"\"ИНН \"&INN&\", БИК \"&BIC&\", Р/С \"&PersonalAcc","v":"ИНН 7453197647, БИК 047501001, Р/С 40101810400000010801"},null,null,null,null,null,null,null,null,null,null,null,null,null,null,null,null,null,null,null,null,null,null,{"$f":"\"ИНН \"&INN&\", БИК \"&BIC&\", Р/С \"&PersonalAcc","v":"ИНН 7453197647, БИК 047501001, Р/С 40101810400000010801"}]
[]
[]
[]
[]
[null,"ЛС: 76КР-44-1",null,null,null,null,null,null,null,null,null,null,null,null,null,null,null,null,null,null,null,null,null,null,"ЛС: 76КР-45-0"]
[]
[null,"Период: Январь 2019",null,null,null,null,null,null,null,null,null,null,null,null,null,null,null,null,null,null,null,null,null,null,"Период: Январь 2019"]
[]
[null,"Сумма: 8628.18",null,null,null,null,null,null,null,null,null,null,null,null,null,null,null,null,null,null,null,null,null,null,"Сумма: 553.81"]
[]
[]
[null,"г.Тимашевск,поселок сахарного завода,дом 76, кв44",null,null,null,null,null,null,null,null,null,null,null,null,null,null,null,null,null,null,null,null,null,null,"г.Тимашевск,поселок сахарного завода,дом 76, кв45"]
[]
[]
[]
[]
[]
[{"$f":"Name","v":" УФК по Челябинской области (Управление Министерства юстиции Российской Федерации по Челябинской области)"},null,null,null,null,null,null,null,null,null,null,null,null,null,null,null,null,null,null,null,null,null,null,{"$f":"Name","v":" УФК по Челябинской области (Управление Министерства юстиции Российской Федерации по Челябинской области)"}]
[]
[]
[null,{"$f":"\"ИНН \"&INN&\", БИК \"&BIC&\", Р/С \"&PersonalAcc","v":"ИНН 7453197647, БИК 047501001, Р/С 40101810400000010801"},null,null,null,null,null,null,null,null,null,null,null,null,null,null,null,null,null,null,null,null,null,null,{"$f":"\"ИНН \"&INN&\", БИК \"&BIC&\", Р/С \"&PersonalAcc","v":"ИНН 7453197647, БИК 047501001, Р/С 40101810400000010801"}]
[]
[]
[]
[]
[null,"ЛС: 76КР-46-0",null,null,null,null,null,null,null,null,null,null,null,null,null,null,null,null,null,null,null,null,null,null,"ЛС: 76КР-47-0"]
[]
[null,"Период: Январь 2019",null,null,null,null,null,null,null,null,null,null,null,null,null,null,null,null,null,null,null,null,null,null,"Период: Январь 2019"]
[]
[null,"Сумма: 3835.72",null,null,null,null,null,null,null,null,null,null,null,null,null,null,null,null,null,null,null,null,null,null,"Сумма: 1034.36"]
[]
[]
[null,"г.Тимашевск,поселок сахарного завода,дом 76, кв46",null,null,null,null,null,null,null,null,null,null,null,null,null,null,null,null,null,null,null,null,null,null,"г.Тимашевск,поселок сахарного завода,дом 76, кв47"]
[]
[]
[]
[]
[]
[{"$f":"Name","v":" УФК по Челябинской области (Управление Министерства юстиции Российской Федерации по Челябинской области)"},null,null,null,null,null,null,null,null,null,null,null,null,null,null,null,null,null,null,null,null,null,null,{"$f":"Name","v":" УФК по Челябинской области (Управление Министерства юстиции Российской Федерации по Челябинской области)"}]
[]
[]
[null,{"$f":"\"ИНН \"&INN&\", БИК \"&BIC&\", Р/С \"&PersonalAcc","v":"ИНН 7453197647, БИК 047501001, Р/С 40101810400000010801"},null,null,null,null,null,null,null,null,null,null,null,null,null,null,null,null,null,null,null,null,null,null,{"$f":"\"ИНН \"&INN&\", БИК \"&BIC&\", Р/С \"&PersonalAcc","v":"ИНН 7453197647, БИК 047501001, Р/С 40101810400000010801"}]
[]
[]
[]
[]
[null,"ЛС: 76КР-48-0",null,null,null,null,null,null,null,null,null,null,null,null,null,null,null,null,null,null,null,null,null,null,"ЛС: 76КР-49-0"]
[]
[null,"Период: Январь 2019",null,null,null,null,null,null,null,null,null,null,null,null,null,null,null,null,null,null,null,null,null,null,"Период: Январь 2019"]
[]
[null,"Сумма: 385.16",null,null,null,null,null,null,null,null,null,null,null,null,null,null,null,null,null,null,null,null,null,null,"Сумма: 11618.88"]
[]
[]
[null,"г.Тимашевск,поселок сахарного завода,дом 76, кв49",null,null,null,null,null,null,null,null,null,null,null,null,null,null,null,null,null,null,null,null,null,null,"г.Тимашевск,поселок сахарного завода,дом 76, кв50"]
[]
[]
[]
[]
[]
[{"$f":"Name","v":" УФК по Челябинской области (Управление Министерства юстиции Российской Федерации по Челябинской области)"},null,null,null,null,null,null,null,null,null,null,null,null,null,null,null,null,null,null,null,null,null,null,{"$f":"Name","v":" УФК по Челябинской области (Управление Министерства юстиции Российской Федерации по Челябинской области)"}]
[]
[]
[null,{"$f":"\"ИНН \"&INN&\", БИК \"&BIC&\", Р/С \"&PersonalAcc","v":"ИНН 7453197647, БИК 047501001, Р/С 40101810400000010801"},null,null,null,null,null,null,null,null,null,null,null,null,null,null,null,null,null,null,null,null,null,null,{"$f":"\"ИНН \"&INN&\", БИК \"&BIC&\", Р/С \"&PersonalAcc","v":"ИНН 7453197647, БИК 047501001, Р/С 40101810400000010801"}]
[]
[]
[]
[]
[null,"ЛС: 76КР-50-0",null,null,null,null,null,null,null,null,null,null,null,null,null,null,null,null,null,null,null,null,null,null,"ЛС: 76КР-51-0"]
[]
[null,"Период: Январь 2019",null,null,null,null,null,null,null,null,null,null,null,null,null,null,null,null,null,null,null,null,null,null,"Период: Январь 2019"]
[]
[null,"Сумма: 1018.26",null,null,null,null,null,null,null,null,null,null,null,null,null,null,null,null,null,null,null,null,null,null,"Сумма: 544.23"]
[]
[]
[null,"г.Тимашевск,поселок сахарного завода,дом 76, кв48",null,null,null,null,null,null,null,null,null,null,null,null,null,null,null,null,null,null,null,null,null,null,"г.Тимашевск,поселок сахарного завода,дом 76, кв52"]
[]
[]
[]
[]
[]
[{"$f":"Name","v":" УФК по Челябинской области (Управление Министерства юстиции Российской Федерации по Челябинской области)"},null,null,null,null,null,null,null,null,null,null,null,null,null,null,null,null,null,null,null,null,null,null,{"$f":"Name","v":" УФК по Челябинской области (Управление Министерства юстиции Российской Федерации по Челябинской области)"}]
[]
[]
[null,{"$f":"\"ИНН \"&INN&\", БИК \"&BIC&\", Р/С \"&PersonalAcc","v":"ИНН 7453197647, БИК 047501001, Р/С 40101810400000010801"},null,null,null,null,null,null,null,null,null,null,null,null,null,null,null,null,null,null,null,null,null,null,{"$f":"\"ИНН \"&INN&\", БИК \"&BIC&\", Р/С \"&PersonalAcc","v":"ИНН 7453197647, БИК 047501001, Р/С 40101810400000010801"}]
[]
[]
[]
[]
[null,"ЛС: 76КР-52-0",null,null,null,null,null,null,null,null,null,null,null,null,null,null,null,null,null,null,null,null,null,null,"ЛС: 76КР-53-0"]
[]
[null,"Период: Январь 2019",null,null,null,null,null,null,null,null,null,null,null,null,null,null,null,null,null,null,null,null,null,null,"Период: Январь 2019"]
[]
[null,"Сумма: 10194.92",null,null,null,null,null,null,null,null,null,null,null,null,null,null,null,null,null,null,null,null,null,null,"Сумма: 10776.32"]
[]
[]
[null,"г.Тимашевск,поселок сахарного завода,дом 76, кв53",null,null,null,null,null,null,null,null,null,null,null,null,null,null,null,null,null,null,null,null,null,null,"г.Тимашевск,поселок сахарного завода,дом 76, кв51"]
[]
[]
[]
[]
[]
[{"$f":"Name","v":" УФК по Челябинской области (Управление Министерства юстиции Российской Федерации по Челябинской области)"},null,null,null,null,null,null,null,null,null,null,null,null,null,null,null,null,null,null,null,null,null,null,{"$f":"Name","v":" УФК по Челябинской области (Управление Министерства юстиции Российской Федерации по Челябинской области)"}]
[]
[]
[null,{"$f":"\"ИНН \"&INN&\", БИК \"&BIC&\", Р/С \"&PersonalAcc","v":"ИНН 7453197647, БИК 047501001, Р/С 40101810400000010801"},null,null,null,null,null,null,null,null,null,null,null,null,null,null,null,null,null,null,null,null,null,null,{"$f":"\"ИНН \"&INN&\", БИК \"&BIC&\", Р/С \"&PersonalAcc","v":"ИНН 7453197647, БИК 047501001, Р/С 40101810400000010801"}]
[]
[]
[]
[]
[null,"ЛС: 76КР-54-0",null,null,null,null,null,null,null,null,null,null,null,null,null,null,null,null,null,null,null,null,null,null,"ЛС: 76КР-55-0"]
[]
[null,"Период: Январь 2019",null,null,null,null,null,null,null,null,null,null,null,null,null,null,null,null,null,null,null,null,null,null,"Период: Январь 2019"]
[]
[null,"Сумма: 372.40",null,null,null,null,null,null,null,null,null,null,null,null,null,null,null,null,null,null,null,null,null,null,"Сумма: 829.92"]
[]
[]
[null,"г.Тимашевск,поселок сахарного завода,дом 76, кв55",null,null,null,null,null,null,null,null,null,null,null,null,null,null,null,null,null,null,null,null,null,null,"г.Тимашевск,поселок сахарного завода,дом 76, кв56"]
[]
[]
[]
[]
[]
[{"$f":"Name","v":" УФК по Челябинской области (Управление Министерства юстиции Российской Федерации по Челябинской области)"},null,null,null,null,null,null,null,null,null,null,null,null,null,null,null,null,null,null,null,null,null,null,{"$f":"Name","v":" УФК по Челябинской области (Управление Министерства юстиции Российской Федерации по Челябинской области)"}]
[]
[]
[null,{"$f":"\"ИНН \"&INN&\", БИК \"&BIC&\", Р/С \"&PersonalAcc","v":"ИНН 7453197647, БИК 047501001, Р/С 40101810400000010801"},null,null,null,null,null,null,null,null,null,null,null,null,null,null,null,null,null,null,null,null,null,null,{"$f":"\"ИНН \"&INN&\", БИК \"&BIC&\", Р/С \"&PersonalAcc","v":"ИНН 7453197647, БИК 047501001, Р/С 40101810400000010801"}]
[]
[]
[]
[]
[null,"ЛС: 76КР-56-0",null,null,null,null,null,null,null,null,null,null,null,null,null,null,null,null,null,null,null,null,null,null,"ЛС: 76КР-57-0"]
[]
[null,"Период: Январь 2019",null,null,null,null,null,null,null,null,null,null,null,null,null,null,null,null,null,null,null,null,null,null,"Период: Январь 2019"]
[]
[null,"Сумма: 416.56",null,null,null,null,null,null,null,null,null,null,null,null,null,null,null,null,null,null,null,null,null,null,"Сумма: -337.29"]
[]
[]
[null,"г.Тимашевск,поселок сахарного завода,дом 76, кв54",null,null,null,null,null,null,null,null,null,null,null,null,null,null,null,null,null,null,null,null,null,null,"г.Тимашевск,поселок сахарного завода,дом 76, кв57"]
[]
[]
[]
[]
[]
[{"$f":"Name","v":" УФК по Челябинской области (Управление Министерства юстиции Российской Федерации по Челябинской области)"},null,null,null,null,null,null,null,null,null,null,null,null,null,null,null,null,null,null,null,null,null,null,{"$f":"Name","v":" УФК по Челябинской области (Управление Министерства юстиции Российской Федерации по Челябинской области)"}]
[]
[]
[null,{"$f":"\"ИНН \"&INN&\", БИК \"&BIC&\", Р/С \"&PersonalAcc","v":"ИНН 7453197647, БИК 047501001, Р/С 40101810400000010801"},null,null,null,null,null,null,null,null,null,null,null,null,null,null,null,null,null,null,null,null,null,null,{"$f":"\"ИНН \"&INN&\", БИК \"&BIC&\", Р/С \"&PersonalAcc","v":"ИНН 7453197647, БИК 047501001, Р/С 40101810400000010801"}]
[]
[]
[]
[]
[null,"ЛС: 76КР-58-0",null,null,null,null,null,null,null,null,null,null,null,null,null,null,null,null,null,null,null,null,null,null,"ЛС: 76КР-59-0"]
[]
[null,"Период: Январь 2019",null,null,null,null,null,null,null,null,null,null,null,null,null,null,null,null,null,null,null,null,null,null,"Период: Январь 2019"]
[]
[null,"Сумма: 1047.25",null,null,null,null,null,null,null,null,null,null,null,null,null,null,null,null,null,null,null,null,null,null,"Сумма: 8810.88"]
[]
[]
[null,"г.Тимашевск,поселок сахарного завода,дом 76, кв58",null,null,null,null,null,null,null,null,null,null,null,null,null,null,null,null,null,null,null,null,null,null,"г.Тимашевск,поселок сахарного завода,дом 76, кв59"]
[]
[]
[]
[]
[]
[{"$f":"Name","v":" УФК по Челябинской области (Управление Министерства юстиции Российской Федерации по Челябинской области)"},null,null,null,null,null,null,null,null,null,null,null,null,null,null,null,null,null,null,null,null,null,null,{"$f":"Name","v":" УФК по Челябинской области (Управление Министерства юстиции Российской Федерации по Челябинской области)"}]
[]
[]
[null,{"$f":"\"ИНН \"&INN&\", БИК \"&BIC&\", Р/С \"&PersonalAcc","v":"ИНН 7453197647, БИК 047501001, Р/С 40101810400000010801"},null,null,null,null,null,null,null,null,null,null,null,null,null,null,null,null,null,null,null,null,null,null,{"$f":"\"ИНН \"&INN&\", БИК \"&BIC&\", Р/С \"&PersonalAcc","v":"ИНН 7453197647, БИК 047501001, Р/С 40101810400000010801"}]
[]
[]
[]
[]
[null,"ЛС: 76КР-60-0",null,null,null,null,null,null,null,null,null,null,null,null,null,null,null,null,null,null,null,null,null,null,"ЛС: 76КР-60-1"]
[]
[null,"Период: Январь 2019",null,null,null,null,null,null,null,null,null,null,null,null,null,null,null,null,null,null,null,null,null,null,"Период: Январь 2019"]
[]
[null,"Сумма: 422.40",null,null,null,null,null,null,null,null,null,null,null,null,null,null,null,null,null,null,null,null,null,null,"Сумма: 281.64"]
[]
[]
[null,"г.Тимашевск,поселок сахарного завода,дом 76, кв60",null,null,null,null,null,null,null,null,null,null,null,null,null,null,null,null,null,null,null,null,null,null,"г.Тимашевск,поселок сахарного завода,дом 76, кв60"]
[]
[]
[]
[]
[]
[{"$f":"Name","v":" УФК по Челябинской области (Управление Министерства юстиции Российской Федерации по Челябинской области)"},null,null,null,null,null,null,null,null,null,null,null,null,null,null,null,null,null,null,null,null,null,null,{"$f":"Name","v":" УФК по Челябинской области (Управление Министерства юстиции Российской Федерации по Челябинской области)"}]
[]
[]
[null,{"$f":"\"ИНН \"&INN&\", БИК \"&BIC&\", Р/С \"&PersonalAcc","v":"ИНН 7453197647, БИК 047501001, Р/С 40101810400000010801"},null,null,null,null,null,null,null,null,null,null,null,null,null,null,null,null,null,null,null,null,null,null,{"$f":"\"ИНН \"&INN&\", БИК \"&BIC&\", Р/С \"&PersonalAcc","v":"ИНН 7453197647, БИК 047501001, Р/С 40101810400000010801"}]
[]
[]
[]
[]
[null,"ЛС: 76КР-60-2",null,null,null,null,null,null,null,null,null,null,null,null,null,null,null,null,null,null,null,null,null,null,"ЛС: 76КР-61-0"]
[]
[null,"Период: Январь 2019",null,null,null,null,null,null,null,null,null,null,null,null,null,null,null,null,null,null,null,null,null,null,"Период: Январь 2019"]
[]
[null,"Сумма: 140.76",null,null,null,null,null,null,null,null,null,null,null,null,null,null,null,null,null,null,null,null,null,null,"Сумма: 6090.30"]
[]
[]
[null,"г.Тимашевск,поселок сахарного завода,дом 76, кв60",null,null,null,null,null,null,null,null,null,null,null,null,null,null,null,null,null,null,null,null,null,null,"г.Тимашевск,поселок сахарного завода,дом 76, кв61"]
[]
[]
[]
[]
[]
[{"$f":"Name","v":" УФК по Челябинской области (Управление Министерства юстиции Российской Федерации по Челябинской области)"},null,null,null,null,null,null,null,null,null,null,null,null,null,null,null,null,null,null,null,null,null,null,{"$f":"Name","v":" УФК по Челябинской области (Управление Министерства юстиции Российской Федерации по Челябинской области)"}]
[]
[]
[null,{"$f":"\"ИНН \"&INN&\", БИК \"&BIC&\", Р/С \"&PersonalAcc","v":"ИНН 7453197647, БИК 047501001, Р/С 40101810400000010801"},null,null,null,null,null,null,null,null,null,null,null,null,null,null,null,null,null,null,null,null,null,null,{"$f":"\"ИНН \"&INN&\", БИК \"&BIC&\", Р/С \"&PersonalAcc","v":"ИНН 7453197647, БИК 047501001, Р/С 40101810400000010801"}]
[]
[]
[]
[]
[null,"ЛС: 76КР-62-0",null,null,null,null,null,null,null,null,null,null,null,null,null,null,null,null,null,null,null,null,null,null,"ЛС: 76КР-62-1"]
[]
[null,"Период: Январь 2019",null,null,null,null,null,null,null,null,null,null,null,null,null,null,null,null,null,null,null,null,null,null,"Период: Январь 2019"]
[]
[null,"Сумма: 4712.21",null,null,null,null,null,null,null,null,null,null,null,null,null,null,null,null,null,null,null,null,null,null,"Сумма: 4712.21"]
[]
[]
[null,"г.Тимашевск,поселок сахарного завода,дом 76, кв62",null,null,null,null,null,null,null,null,null,null,null,null,null,null,null,null,null,null,null,null,null,null,"г.Тимашевск,поселок сахарного завода,дом 76, кв62"]
[]
[]
[]
[]
[]
[{"$f":"Name","v":" УФК по Челябинской области (Управление Министерства юстиции Российской Федерации по Челябинской области)"},null,null,null,null,null,null,null,null,null,null,null,null,null,null,null,null,null,null,null,null,null,null,{"$f":"Name","v":" УФК по Челябинской области (Управление Министерства юстиции Российской Федерации по Челябинской области)"}]
[]
[]
[null,{"$f":"\"ИНН \"&INN&\", БИК \"&BIC&\", Р/С \"&PersonalAcc","v":"ИНН 7453197647, БИК 047501001, Р/С 40101810400000010801"},null,null,null,null,null,null,null,null,null,null,null,null,null,null,null,null,null,null,null,null,null,null,{"$f":"\"ИНН \"&INN&\", БИК \"&BIC&\", Р/С \"&PersonalAcc","v":"ИНН 7453197647, БИК 047501001, Р/С 40101810400000010801"}]
[]
[]
[]
[]
[null,"ЛС: 76КР-63-0",null,null,null,null,null,null,null,null,null,null,null,null,null,null,null,null,null,null,null,null,null,null,"ЛС: 76КР-64-0"]
[]
[null,"Период: Январь 2019",null,null,null,null,null,null,null,null,null,null,null,null,null,null,null,null,null,null,null,null,null,null,"Период: Январь 2019"]
[]
[null,"Сумма: 1015.05",null,null,null,null,null,null,null,null,null,null,null,null,null,null,null,null,null,null,null,null,null,null,"Сумма: 1272.00"]
[]
[]
[null,"г.Тимашевск,поселок сахарного завода,дом 76, кв63",null,null,null,null,null,null,null,null,null,null,null,null,null,null,null,null,null,null,null,null,null,null,"г.Тимашевск,поселок сахарного завода,дом 76, кв64"]
[]
[]
[]
[]
[]
[{"$f":"Name","v":" УФК по Челябинской области (Управление Министерства юстиции Российской Федерации по Челябинской области)"},null,null,null,null,null,null,null,null,null,null,null,null,null,null,null,null,null,null,null,null,null,null,{"$f":"Name","v":" УФК по Челябинской области (Управление Министерства юстиции Российской Федерации по Челябинской области)"}]
[]
[]
[null,{"$f":"\"ИНН \"&INN&\", БИК \"&BIC&\", Р/С \"&PersonalAcc","v":"ИНН 7453197647, БИК 047501001, Р/С 40101810400000010801"},null,null,null,null,null,null,null,null,null,null,null,null,null,null,null,null,null,null,null,null,null,null,{"$f":"\"ИНН \"&INN&\", БИК \"&BIC&\", Р/С \"&PersonalAcc","v":"ИНН 7453197647, БИК 047501001, Р/С 40101810400000010801"}]
[]
[]
[]
[]
[null,"ЛС: 76КР-65-0",null,null,null,null,null,null,null,null,null,null,null,null,null,null,null,null,null,null,null,null,null,null,"ЛС: 76КР-66-0"]
[]
[null,"Период: Январь 2019",null,null,null,null,null,null,null,null,null,null,null,null,null,null,null,null,null,null,null,null,null,null,"Период: Январь 2019"]
[]
[null,"Сумма: 999.09",null,null,null,null,null,null,null,null,null,null,null,null,null,null,null,null,null,null,null,null,null,null,"Сумма: 810.78"]
[]
[]
[null,"г.Тимашевск,поселок сахарного завода,дом 76, кв65",null,null,null,null,null,null,null,null,null,null,null,null,null,null,null,null,null,null,null,null,null,null,"г.Тимашевск,поселок сахарного завода,дом 76, кв66"]
[]
[]
[]
[]
[]
[{"$f":"Name","v":" УФК по Челябинской области (Управление Министерства юстиции Российской Федерации по Челябинской области)"},null,null,null,null,null,null,null,null,null,null,null,null,null,null,null,null,null,null,null,null,null,null,{"$f":"Name","v":" УФК по Челябинской области (Управление Министерства юстиции Российской Федерации по Челябинской области)"}]
[]
[]
[null,{"$f":"\"ИНН \"&INN&\", БИК \"&BIC&\", Р/С \"&PersonalAcc","v":"ИНН 7453197647, БИК 047501001, Р/С 40101810400000010801"},null,null,null,null,null,null,null,null,null,null,null,null,null,null,null,null,null,null,null,null,null,null,{"$f":"\"ИНН \"&INN&\", БИК \"&BIC&\", Р/С \"&PersonalAcc","v":"ИНН 7453197647, БИК 047501001, Р/С 40101810400000010801"}]
[]
[]
[]
[]
[null,"ЛС: 76КР-67-0",null,null,null,null,null,null,null,null,null,null,null,null,null,null,null,null,null,null,null,null,null,null,"ЛС: 76КР-68-0"]
[]
[null,"Период: Январь 2019",null,null,null,null,null,null,null,null,null,null,null,null,null,null,null,null,null,null,null,null,null,null,"Период: Январь 2019"]
[]
[null,"Сумма: 552.21",null,null,null,null,null,null,null,null,null,null,null,null,null,null,null,null,null,null,null,null,null,null,"Сумма: 15637.44"]
[]
[]
[null,"г.Тимашевск,поселок сахарного завода,дом 76, кв67",null,null,null,null,null,null,null,null,null,null,null,null,null,null,null,null,null,null,null,null,null,null,"г.Тимашевск,поселок сахарного завода,дом 76, кв68"]
[]
[]
[]
[]
[]
[{"$f":"Name","v":" УФК по Челябинской области (Управление Министерства юстиции Российской Федерации по Челябинской области)"},null,null,null,null,null,null,null,null,null,null,null,null,null,null,null,null,null,null,null,null,null,null,{"$f":"Name","v":" УФК по Челябинской области (Управление Министерства юстиции Российской Федерации по Челябинской области)"}]
[]
[]
[null,{"$f":"\"ИНН \"&INN&\", БИК \"&BIC&\", Р/С \"&PersonalAcc","v":"ИНН 7453197647, БИК 047501001, Р/С 40101810400000010801"},null,null,null,null,null,null,null,null,null,null,null,null,null,null,null,null,null,null,null,null,null,null,{"$f":"\"ИНН \"&INN&\", БИК \"&BIC&\", Р/С \"&PersonalAcc","v":"ИНН 7453197647, БИК 047501001, Р/С 40101810400000010801"}]
[]
[]
[]
[]
[null,"ЛС: 76КР-69-0",null,null,null,null,null,null,null,null,null,null,null,null,null,null,null,null,null,null,null,null,null,null,"ЛС: 76КР-70-0"]
[]
[null,"Период: Январь 2019",null,null,null,null,null,null,null,null,null,null,null,null,null,null,null,null,null,null,null,null,null,null,"Период: Январь 2019"]
[]
[null,"Сумма: 540.52",null,null,null,null,null,null,null,null,null,null,null,null,null,null,null,null,null,null,null,null,null,null,"Сумма: 186.12"]
[]
[]
[null,"г.Тимашевск,поселок сахарного завода,дом 76, кв69",null,null,null,null,null,null,null,null,null,null,null,null,null,null,null,null,null,null,null,null,null,null,"г.Тимашевск,поселок сахарного завода,дом 76, кв70"]
[]
[]
[]
[]
[]
[{"$f":"Name","v":" УФК по Челябинской области (Управление Министерства юстиции Российской Федерации по Челябинской области)"},null,null,null,null,null,null,null,null,null,null,null,null,null,null,null,null,null,null,null,null,null,null,{"$f":"Name","v":" УФК по Челябинской области (Управление Министерства юстиции Российской Федерации по Челябинской области)"}]
[]
[]
[null,{"$f":"\"ИНН \"&INN&\", БИК \"&BIC&\", Р/С \"&PersonalAcc","v":"ИНН 7453197647, БИК 047501001, Р/С 40101810400000010801"},null,null,null,null,null,null,null,null,null,null,null,null,null,null,null,null,null,null,null,null,null,null,{"$f":"\"ИНН \"&INN&\", БИК \"&BIC&\", Р/С \"&PersonalAcc","v":"ИНН 7453197647, БИК 047501001, Р/С 40101810400000010801"}]
[]
[]
[]
[]
[null,"ЛС: 76КР-71-0",null,null,null,null,null,null,null,null,null,null,null,null,null,null,null,null,null,null,null,null,null,null,"ЛС: 76КР-72-0"]
[]
[null,"Период: Январь 2019",null,null,null,null,null,null,null,null,null,null,null,null,null,null,null,null,null,null,null,null,null,null,"Период: Январь 2019"]
[]
[null,"Сумма: 17011.56",null,null,null,null,null,null,null,null,null,null,null,null,null,null,null,null,null,null,null,null,null,null,"Сумма: 2898.88"]
[]
[]
[null,"г.Тимашевск,поселок сахарного завода,дом 76, кв71",null,null,null,null,null,null,null,null,null,null,null,null,null,null,null,null,null,null,null,null,null,null,"г.Тимашевск,поселок сахарного завода,дом 76, кв72"]
[]
[]
[]
[]
[]
[{"$f":"Name","v":" УФК по Челябинской области (Управление Министерства юстиции Российской Федерации по Челябинской области)"},null,null,null,null,null,null,null,null,null,null,null,null,null,null,null,null,null,null,null,null,null,null,{"$f":"Name","v":" УФК по Челябинской области (Управление Министерства юстиции Российской Федерации по Челябинской области)"}]
[]
[]
[null,{"$f":"\"ИНН \"&INN&\", БИК \"&BIC&\", Р/С \"&PersonalAcc","v":"ИНН 7453197647, БИК 047501001, Р/С 40101810400000010801"},null,null,null,null,null,null,null,null,null,null,null,null,null,null,null,null,null,null,null,null,null,null,{"$f":"\"ИНН \"&INN&\", БИК \"&BIC&\", Р/С \"&PersonalAcc","v":"ИНН 7453197647, БИК 047501001, Р/С 40101810400000010801"}]
[]
[]
[]
[]
[null,"ЛС: 76КР-72-1",null,null,null,null,null,null,null,null,null,null,null,null,null,null,null,null,null,null,null,null,null,null,"ЛС: 76КР-73-0"]
[]
[null,"Период: Январь 2019",null,null,null,null,null,null,null,null,null,null,null,null,null,null,null,null,null,null,null,null,null,null,"Период: Январь 2019"]
[]
[null,"Сумма: 5800.32",null,null,null,null,null,null,null,null,null,null,null,null,null,null,null,null,null,null,null,null,null,null,"Сумма: 1246.30"]
[]
[]
[null,"г.Тимашевск,поселок сахарного завода,дом 76, кв72",null,null,null,null,null,null,null,null,null,null,null,null,null,null,null,null,null,null,null,null,null,null,"г.Тимашевск,поселок сахарного завода,дом 76, кв73"]
[]
[]
[]
[]
[]
[{"$f":"Name","v":" УФК по Челябинской области (Управление Министерства юстиции Российской Федерации по Челябинской области)"},null,null,null,null,null,null,null,null,null,null,null,null,null,null,null,null,null,null,null,null,null,null,{"$f":"Name","v":" УФК по Челябинской области (Управление Министерства юстиции Российской Федерации по Челябинской области)"}]
[]
[]
[null,{"$f":"\"ИНН \"&INN&\", БИК \"&BIC&\", Р/С \"&PersonalAcc","v":"ИНН 7453197647, БИК 047501001, Р/С 40101810400000010801"},null,null,null,null,null,null,null,null,null,null,null,null,null,null,null,null,null,null,null,null,null,null,{"$f":"\"ИНН \"&INN&\", БИК \"&BIC&\", Р/С \"&PersonalAcc","v":"ИНН 7453197647, БИК 047501001, Р/С 40101810400000010801"}]
[]
[]
[]
[]
[null,"ЛС: 76КР-74-0",null,null,null,null,null,null,null,null,null,null,null,null,null,null,null,null,null,null,null,null,null,null,"ЛС: 76КР-75-0"]
[]
[null,"Период: Январь 2019",null,null,null,null,null,null,null,null,null,null,null,null,null,null,null,null,null,null,null,null,null,null,"Период: Январь 2019"]
[]
[null,"Сумма: 1003.89",null,null,null,null,null,null,null,null,null,null,null,null,null,null,null,null,null,null,null,null,null,null,"Сумма: 558.60"]
[]
[]
[null,"г.Тимашевск,поселок сахарного завода,дом 76, кв74",null,null,null,null,null,null,null,null,null,null,null,null,null,null,null,null,null,null,null,null,null,null,"г.Тимашевск,поселок сахарного завода,дом 76, кв75"]
[]
[]
[]
[]
[]
[{"$f":"Name","v":" УФК по Челябинской области (Управление Министерства юстиции Российской Федерации по Челябинской области)"},null,null,null,null,null,null,null,null,null,null,null,null,null,null,null,null,null,null,null,null,null,null,{"$f":"Name","v":" УФК по Челябинской области (Управление Министерства юстиции Российской Федерации по Челябинской области)"}]
[]
[]
[null,{"$f":"\"ИНН \"&INN&\", БИК \"&BIC&\", Р/С \"&PersonalAcc","v":"ИНН 7453197647, БИК 047501001, Р/С 40101810400000010801"},null,null,null,null,null,null,null,null,null,null,null,null,null,null,null,null,null,null,null,null,null,null,{"$f":"\"ИНН \"&INN&\", БИК \"&BIC&\", Р/С \"&PersonalAcc","v":"ИНН 7453197647, БИК 047501001, Р/С 40101810400000010801"}]
[]
[]
[]
[]
[null,"ЛС: 76КР-76-0",null,null,null,null,null,null,null,null,null,null,null,null,null,null,null,null,null,null,null,null,null,null,"ЛС: 76КР-77-0"]
[]
[null,"Период: Январь 2019",null,null,null,null,null,null,null,null,null,null,null,null,null,null,null,null,null,null,null,null,null,null,"Период: Январь 2019"]
[]
[null,"Сумма: 1438.56",null,null,null,null,null,null,null,null,null,null,null,null,null,null,null,null,null,null,null,null,null,null,"Сумма: 1002.30"]
[]
[]
[null,"г.Тимашевск,поселок сахарного завода,дом 76, кв76",null,null,null,null,null,null,null,null,null,null,null,null,null,null,null,null,null,null,null,null,null,null,"г.Тимашевск,поселок сахарного завода,дом 76, кв77"]
[]
[]
[]
[]
[]
[{"$f":"Name","v":" УФК по Челябинской области (Управление Министерства юстиции Российской Федерации по Челябинской области)"},null,null,null,null,null,null,null,null,null,null,null,null,null,null,null,null,null,null,null,null,null,null,{"$f":"Name","v":" УФК по Челябинской области (Управление Министерства юстиции Российской Федерации по Челябинской области)"}]
[]
[]
[null,{"$f":"\"ИНН \"&INN&\", БИК \"&BIC&\", Р/С \"&PersonalAcc","v":"ИНН 7453197647, БИК 047501001, Р/С 40101810400000010801"},null,null,null,null,null,null,null,null,null,null,null,null,null,null,null,null,null,null,null,null,null,null,{"$f":"\"ИНН \"&INN&\", БИК \"&BIC&\", Р/С \"&PersonalAcc","v":"ИНН 7453197647, БИК 047501001, Р/С 40101810400000010801"}]
[]
[]
[]
[]
[null,"ЛС: 76КР-78-0",null,null,null,null,null,null,null,null,null,null,null,null,null,null,null,null,null,null,null,null,null,null,"ЛС: 76КР-79-0"]
[]
[null,"Период: Январь 2019",null,null,null,null,null,null,null,null,null,null,null,null,null,null,null,null,null,null,null,null,null,null,"Период: Январь 2019"]
[]
[null,"Сумма: 7109.70",null,null,null,null,null,null,null,null,null,null,null,null,null,null,null,null,null,null,null,null,null,null,"Сумма: 9224.88"]
[]
[]
[null,"г.Тимашевск,поселок сахарного завода,дом 76, кв78",null,null,null,null,null,null,null,null,null,null,null,null,null,null,null,null,null,null,null,null,null,null,"г.Тимашевск,поселок сахарного завода,дом 76, кв79"]
[]
[]
[]
[]
[]
[{"$f":"Name","v":" УФК по Челябинской области (Управление Министерства юстиции Российской Федерации по Челябинской области)"},null,null,null,null,null,null,null,null,null,null,null,null,null,null,null,null,null,null,null,null,null,null,{"$f":"Name","v":" УФК по Челябинской области (Управление Министерства юстиции Российской Федерации по Челябинской области)"}]
[]
[]
[null,{"$f":"\"ИНН \"&INN&\", БИК \"&BIC&\", Р/С \"&PersonalAcc","v":"ИНН 7453197647, БИК 047501001, Р/С 40101810400000010801"},null,null,null,null,null,null,null,null,null,null,null,null,null,null,null,null,null,null,null,null,null,null,{"$f":"\"ИНН \"&INN&\", БИК \"&BIC&\", Р/С \"&PersonalAcc","v":"ИНН 7453197647, БИК 047501001, Р/С 40101810400000010801"}]
[]
[]
[]
[]
[null,"ЛС: 76КР-80-0",null,null,null,null,null,null,null,null,null,null,null,null,null,null,null,null,null,null,null,null,null,null,"ЛС: 76КР-80-1"]
[]
[null,"Период: Январь 2019",null,null,null,null,null,null,null,null,null,null,null,null,null,null,null,null,null,null,null,null,null,null,"Период: Январь 2019"]
[]
[null,"Сумма: 500.34",null,null,null,null,null,null,null,null,null,null,null,null,null,null,null,null,null,null,null,null,null,null,"Сумма: 500.34"]
[]
[]
[null,"г.Тимашевск,поселок сахарного завода,дом 76, кв80",null,null,null,null,null,null,null,null,null,null,null,null,null,null,null,null,null,null,null,null,null,null,"г.Тимашевск,поселок сахарного завода,дом 76, кв80"]
[]
[]
[]
[]
[]
[{"$f":"Name","v":" УФК по Челябинской области (Управление Министерства юстиции Российской Федерации по Челябинской области)"},null,null,null,null,null,null,null,null,null,null,null,null,null,null,null,null,null,null,null,null,null,null,{"$f":"Name","v":" УФК по Челябинской области (Управление Министерства юстиции Российской Федерации по Челябинской области)"}]
[]
[]
[null,{"$f":"\"ИНН \"&INN&\", БИК \"&BIC&\", Р/С \"&PersonalAcc","v":"ИНН 7453197647, БИК 047501001, Р/С 40101810400000010801"},null,null,null,null,null,null,null,null,null,null,null,null,null,null,null,null,null,null,null,null,null,null,{"$f":"\"ИНН \"&INN&\", БИК \"&BIC&\", Р/С \"&PersonalAcc","v":"ИНН 7453197647, БИК 047501001, Р/С 40101810400000010801"}]
[]
[]
[]
[]
[]
[]
[]
[]
[]
[]
[]
[]
[]
[]
[]
[]
[]
[{"$f":"Name","v":" УФК по Челябинской области (Управление Министерства юстиции Российской Федерации по Челябинской области)"},null,null,null,null,null,null,null,null,null,null,null,null,null,null,null,null,null,null,null,null,null,null,{"$f":"Name","v":" УФК по Челябинской области (Управление Министерства юстиции Российской Федерации по Челябинской области)"}]
[]
[]
[null,{"$f":"\"ИНН \"&INN&\", БИК \"&BIC&\", Р/С \"&PersonalAcc","v":"ИНН 7453197647, БИК 047501001, Р/С 40101810400000010801"},null,null,null,null,null,null,null,null,null,null,null,null,null,null,null,null,null,null,null,null,null,null,{"$f":"\"ИНН \"&INN&\", БИК \"&BIC&\", Р/С \"&PersonalAcc","v":"ИНН 7453197647, БИК 047501001, Р/С 40101810400000010801"}]

{"sheet":"Шаблон ПД жкх","index":6,"n_rows":22,"n_cols":134,"rows_kept":22,"cut":false,"hidden":true,"merged":[[1,0,1,137],[0,0,0,137],[11,2,19,30],[9,120,9,127],[4,128,7,137],[4,120,7,127],[4,112,7,119],[9,112,9,119],[8,94,8,102],[4,94,7,102],[8,17,8,24],[6,16,6,59],[4,103,7,111],[8,53,8,56],[8,32,8,52],[8,0,8,16],[21,51,21,79],[15,103,15,120],[21,118,21,132],[18,80,18,116],[21,80,21,99],[15,40,15,56],[15,83,15,102],[16,82,16,102],[15,121,15,137],[16,51,16,81],[15,57,15,82],[18,51,18,79],[4,4,4,19],[7,0,7,59],[4,77,7,86],[4,87,7,93],[8,77,8,86],[8,87,8,93],[9,128,9,137],[8,103,8,111],[9,77,9,86],[9,87,9,93],[9,94,9,102],[9,103,9,111],[8,112,8,119],[8,120,8,127],[8,128,8,137],[12,40,14,56],[12,57,14,82],[12,83,14,102],[12,103,14,120],[12,121,14,137]]}
["ПЛАТЕЖНЫЙ ДОКУМЕНТ"]
["для внесения платы за капитальный ремонт"]
[]
["Раздел 1.",null,null,null,null,null,null,null,"Сведения о плательщике",null,null,null,null,null,null,null,null,null,null,null,null,null,null,null,null,null,null,null,null,null,null,null,null,null,null,null,null,null,null,null,null,null,null,null,null,null,null,null,null,null,null,null,null,null,null,null,null,null,null,null,null,null,null,null,null,null,null,null,null,null,null,null,null,null,null,null,null,"Раздел 7.",null,null,null,null,null,null,null,"Расчет размера взноса на капитальный ремонт"]
[null,"за",null,null,null,null,null,null,null,null,null,null,null,null,null,null,null,null,null,null," (расчетный период)",null,null,null,null,null,null,null,null,null,null,null,null,null,null,null,null,null,null,null,null,null,null,null,null,null,null,null,null,null,null,null,null,null,null,null,null,null,null,null,null,null,null,null,null,null,null,null,null,null,null,null,null,null,null,null,null,"Виды услуг",null,null,null,null,null,null,null,null,null,"Единица измере-ния",null,null,null,null,null,null,"Размер взноса на кв. м,\nруб.",null,null,null,null,null,null,null,null,"Всего на-числено за расчетный период, руб.",null,null,null,null,null,null,null,null,"Пере-расчеты всего, \nруб.",null,null,null,null,null,null,null,"Льготы, субсидии, руб.",null,null,null,null,null,null,null,"Итого к оплате за расчетный период,\nруб."]
[]
["Адрес помещения"]
[]
["Площадь помещения:",null,null,null,null,null,null,null,null,null,null,null,null,null,null,null,null,null,null,null,null,null,null,null,null," кв. м",null,null,null,null,null,null,"Количество проживающих",null,null,null,null,null,null,null,null,null,null,null,null,null,null,null,null,null,null,null,null,null,null,null,null," чел.",null,null,null,null,null,null,null,null,null,null,null,null,null,null,null,null,null,null,null,1,null,null,null,null,null,null,null,null,null,2,null,null,null,null,null,null,3,null,null,null,null,null,null,null,null,4,null,null,null,null,null,null,null,null,5,null,null,null,null,null,null,null,6,null,null,null,null,null,null,null,7]
[null,null,null,null,null,null,null,null,null,null,null,null,null,null,null,null,null,null,null,null,null,null,null,null,null,null,null,null,null,null,null,null,null,null,null,null,null,null,null,null,null,null,null,null,null,null,null,null,null,null,null,null,null,null,null,null,null,null,null,null,null,null,null,null,null,null,null,null,null,null,null,null,null,null,null,null,null,"Взнос на капиталь-ный ремонт",null,null,null,null,null,null,null,null,null,"кв. м"]
[]
[null,null,"ЗДЕСЬ ШК",null,null,null,null,null,null,null,null,null,null,null,null,null,null,null,null,null,null,null,null,null,null,null,null,null,null,null,null,null,null,null,null,null,null,null,null,null,"Раздел 8. ",null,null,null,null,null,null,null,"Информация для внесения взноса на капитальный ремонт"]
[null,null,null,null,null,null,null,null,null,null,null,null,null,null,null,null,null,null,null,null,null,null,null,null,null,null,null,null,null,null,null,null,null,null,null,null,null,null,null,null,"Наименование получателя \nплатежа",null,null,null,null,null,null,null,null,null,null,null,null,null,null,null,null,"Номер банковского счета и банковские реквизиты",null,null,null,null,null,null,null,null,null,null,null,null,null,null,null,null,null,null,null,null,null,null,null,null,null,"№ лицевого счета \n(иной идентификатор плательщика)",null,null,null,null,null,null,null,null,null,null,null,null,null,null,null,null,null,null,null,"Назначение платежа",null,null,null,null,null,null,null,null,null,null,null,null,null,null,null,null,null,"Сумма к оплате\nза расчетный период, руб."]
[]
[]
[]
[null,null,null,null,null,null,null,null,null,null,null,null,null,null,null,null,null,null,null,null,null,null,null,null,null,null,null,null,null,null,null,null,null,null,null,null,null,null,null,null,null,"Справочно:",null,null,null,null,null,null,null,null,null,"Задолженность за предыдущие периоды"]
[]
[null,null,null,null,null,null,null,null,null,null,null,null,null,null,null,null,null,null,null,null,null,null,null,null,null,null,null,null,null,null,null,null,null,null,null,null,null,null,null,null,null,null,null,null,null,null,null,null,null,null,null,"Аванс на начало расчетного периода"]
[null,null,null,null,null,null,null,null,null,null,null,null,null,null,null,null,null,null,null,null,null,null,null,null,null,null,null,null,null,null,null,null,null,null,null,null,null,null,null,null,null,null,null,null,null,null,null,null,null,null,null,"(учтены платежи, поступившие до 25 числа расчетного периода включительно)"]
[]
[null,null,null,null,null,null,null,null,null,null,null,null,null,null,null,null,null,null,null,null,null,null,null,null,null,null,null,null,null,null,null,null,null,null,null,null,null,null,null,null,null,null,null,null,null,null,null,null,null,null,null,"Дата последней поступившей оплаты",null,null,null,null,null,null,null,null,null,null,null,null,null,null,null,null,null,null,null,null,null,null,null,null,null,null,null,null,null,null,null,null,null,null,null,null,null,null,null,null,null,null,null,null,null,null,null,null,null,null,null,null,"Итого к оплате:",null,null,null,null,null,null,null,null,null,null,null,null,null,null,null,null,null,null,null,null,null,null,null,null,null,null,null,null," руб."]

{"sheet":"Лист1","index":7,"n_rows":10,"n_cols":4,"rows_kept":10,"cut":false,"hidden":true,"merged":[]}
[1,"Госпошлина в ЗАГС за проставление апостиля ","31810805000010002110",2500]
[{"$f":"A1+1","v":2},"Госпошлина в ЗАГС за внесение изменений или исправлений","31810805000010002110",650]
[{"$f":"A2+1","v":3},"Госпошлина в ЗАГС за повторное свидетельство","31810805000010002110",350]
[4,"Госпошлина в ЗАГС за  заключение  брака","31810805000010001110",350]
[5,"Госпошлина в ЗАГС за истребование документов","31810805000010002110",350]
[6,"Госпошлина в ЗАГС за перемену имени","31810805000010001110",1600]
[7,"Госпошлина в ЗАГС за расторжение брака","31810805000010001110",650]
[8,"Госпошлина в ЗАГС за регистрацию установления отцовства","31810805000010001110",350]
[9,"Госпошлина в ЗАГС за расторжение брака по заявлению одного супруга","31810805000010001110",350]
[10,"Госпошлина в ЗАГС за справку","31810805000010002110",200]